Workbook

Sheet $ by Week
A1: Thursday | B1: WI Week | C1: EC Week
A2: 2004-01-01 | B2: 1.55 | C2: 1.56
A3: 2004-01-08 | B3: 1.58 | C3: 1.6
A4: 2004-01-15 | B4: 1.63 | C4: 1.65
A5: 2004-01-22 | B5: 1.66 | C5: 1.65
A6: 2004-01-29 | B6: 1.69 | C6: 1.66
A7: 2004-02-05 | B7: 1.69 | C7: 1.69
A8: 2004-02-12 | B8: 1.69 | C8: 1.69
A9: 2004-02-19 | B9: 1.7 | C9: 1.7
A10: 2004-02-26 | B10: 1.72 | C10: 1.73
A11: 2004-03-04 | B11: 1.75 | C11: 1.77
A12: 2004-03-11 | B12: 1.76 | C12: 1.76
A13: 2004-03-18 | B13: 1.75 | C13: 1.78
A14: 2004-03-25 | B14: 1.78 | C14: 1.84
A15: 2004-04-01 | B15: 1.79 | C15: 1.85
A16: 2004-04-08 | B16: 1.82 | C16: 1.85
A17: 2004-04-15 | B17: 1.84 | C17: 1.88
A18: 2004-04-22 | B18: 1.86 | C18: 1.88
A19: 2004-04-29 | B19: 1.87 | C19: 1.9
A20: 2004-05-06 | B20: 1.93 | C20: 1.99
A21: 2004-05-13 | B21: 2 | C21: 2.01
A22: 2004-05-20 | B22: 2.09 | C22: 2.1
A23: 2004-05-27 | B23: 2.13 | C23: 2.15
A24: 2004-06-03 | B24: 2.13 | C24: 2.18
A25: 2004-06-10 | B25: 2.08 | C25: 2.05
A26: 2004-06-17 | B26: 1.99 | C26: 2
A27: 2004-06-24 | B27: 1.95 | C27: 1.97
A28: 2004-07-01 | B28: 1.93 | C28: 1.95
A29: 2004-07-08 | B29: 1.91 | C29: 1.95
A30: 2004-07-15 | B30: 1.95 | C30: 1.99
A31: 2004-07-22 | B31: 1.96 | C31: 1.99
A32: 2004-07-29 | B32: 1.95 | C32: 2
A33: 2004-08-05 | B33: 1.94 | C33: 2
A34: 2004-08-12 | B34: 1.94 | C34: 2
A35: 2004-08-19 | B35: 1.97 | C35: 2
A36: 2004-08-26 | B36: 1.98 | C36: 2
A37: 2004-09-02 | B37: 1.94 | C37: 1.93
A38: 2004-09-09 | B38: 1.91 | C38: 1.93
A39: 2004-09-16 | B39: 1.9 | C39: 1.93
A40: 2004-09-23 | B40: 1.93 | C40: 1.97
A41: 2004-09-30 | B41: 2 | C41: 2
A42: 2004-10-07 | B42: 2.02 | C42: 2.06
A43: 2004-10-14 | B43: 2.06 | C43: 2.09
A44: 2004-10-21 | B44: 2.1 | C44: 2.1
A45: 2004-10-28 | B45: 2.11 | C45: 2.11
A46: 2004-11-04 | B46: 2.09 | C46: 2.1
A47: 2004-11-11 | B47: 2.06 | C47: 2.07
A48: 2004-11-18 | B48: 2.01 | C48: 2.06
A49: 2004-11-25 | B49: 2 | C49: 2.07
A50: 2004-12-02 | B50: 2 | C50: 2.04
A51: 2004-12-09 | B51: 1.93 | C51: 1.92
A52: 2004-12-16 | B52: 1.84 | C52: 1.85
A53: 2004-12-23 | B53: 1.82 | C53: 1.84
A54: 2004-12-30 | B54: 1.81 | C54: 1.83
A55: 2005-01-06 | B55: 1.814 | C55: 1.835
A56: 2005-01-13 | B56: 1.87 | C56: 1.9
A57: 2005-01-20 | B57: 1.913 | C57: 1.95
A58: 2005-01-27 | B58: 1.94 | C58: 1.99
A59: 2005-02-03 | B59: 2 | C59: 2
A60: 2005-02-10 | B60: 1.99 | C60: 2
A61: 2005-02-17 | B61: 1.98 | C61: 2
A62: 2005-02-24 | B62: 1.99 | C62: 2
A63: 2005-03-03 | B63: 2.03 | C63: 2.06
A64: 2005-03-10 | B64: 2.08 | C64: 2.12
A65: 2005-03-17 | B65: 2.12 | C65: 2.2
A66: 2005-03-24 | B66: 2.2 | C66: 2.26
A67: 2005-03-31 | B67: 2.24 | C67: 2.26
A68: 2005-04-07 | B68: 2.32 | C68: 2.36
A69: 2005-04-14 | B69: 2.31 | C69: 2.3
A70: 2005-04-21 | B70: 2.25 | C70: 2.24
A71: 2005-04-28 | B71: 2.27 | C71: 2.3
A72: 2005-05-05 | B72: 2.26 | C72: 2.3
A73: 2005-05-12 | B73: 2.22 | C73: 2.24
A74: 2005-05-19 | B74: 2.2 | C74: 2.2
A75: 2005-05-26 | B75: 2.17 | C75: 2.2
A76: 2005-06-02 | B76: 2.17 | C76: 2.2
A77: 2005-06-09 | B77: 2.18 | C77: 2.21
A78: 2005-06-16 | B78: 2.19 | C78: 2.23
A79: 2005-06-23 | B79: 2.25 | C79: 2.26
A80: 2005-06-30 | B80: 2.3 | C80: 2.33
A81: 2005-07-07 | B81: 2.29 | C81: 2.35
A82: 2005-07-14 | B82: 2.39 | C82: 2.37
A83: 2005-07-21 | B83: 2.38 | C83: 2.39
A84: 2005-07-28 | B84: 2.35 | C84: 2.38
A85: 2005-08-04 | B85: 2.35 | C85: 2.37
A86: 2005-08-11 | B86: 2.47 | C86: 2.47
A87: 2005-08-18 | B87: 2.67 | C87: 2.64
A88: 2005-08-25 | B88: 2.71 | C88: 2.7
A89: 2005-09-01 | B89: 2.69 | C89: 2.72
A90: 2005-09-08 | B90: 3.01 | C90: 3.13
A91: 2005-09-15 | B91: 2.93 | C91: 2.93
A92: 2005-09-22 | B92: 2.74 | C92: 2.76
A93: 2005-09-29 | B93: 2.76 | C93: 2.78
A94: 2005-10-06 | B94: 2.98 | C94: 2.95
A95: 2005-10-13 | B95: 2.82 | C95: 2.81
A96: 2005-10-20 | B96: 2.67 | C96: 2.6
A97: 2005-10-27 | B97: 2.57 | C97: 2.53
A98: 2005-11-03 | B98: 2.47 | C98: 2.44
A99: 2005-11-10 | B99: 2.37 | C99: 2.4
A100: 2005-11-17 | B100: =0.5*(B99+B101) -> 2.29 | C100: =0.5*(C99+C101) -> 2.32
A101: 2005-11-24 | B101: 2.21 | C101: 2.24
A102: 2005-12-01 | B102: 2.19 | C102: 2.25
A103: 2005-12-08 | B103: 2.205 | C103: 2.233
A104: 2005-12-15 | B104: 2.25 | C104: 2.25
A105: 2005-12-22 | B105: 2.28 | C105: 2.29
A106: 2005-12-29 | B106: 2.26 | C106: 2.28
A107: 2006-01-05 | B107: 2.33 | C107: 2.3
A108: 2006-01-12 | B108: 2.41 | C108: 2.39
A109: 2006-01-19 | B109: 2.38 | C109: 2.37
A110: 2006-01-26 | B110: 2.36 | C110: 2.37
A111: 2006-02-02 | B111: 2.35 | C111: 2.38
A112: 2006-02-09 | B112: 2.38 | C112: 2.39
A113: 2006-02-16 | B113: 2.33 | C113: 2.35
A114: 2006-02-23 | B114: 2.32 | C114: 2.35
A115: 2006-03-02 | B115: 2.34 | C115: 2.35
A116: 2006-03-09 | B116: 2.43 | C116: 2.45
A117: 2006-03-16 | B117: 2.48 | C117: 2.48
A118: 2006-03-23 | B118: 2.52 | C118: 2.52
A119: 2006-03-30 | B119: 2.62 | C119: 2.62
A120: 2006-04-06 | B120: 2.64 | C120: 2.64
A121: 2006-04-13 | B121: 2.72 | C121: 2.7
A122: 2006-04-20 | B122: 2.85 | C122: 2.84
A123: 2006-04-27 | B123: 2.95 | C123: 2.96
A124: 2006-05-04 | B124: 2.94 | C124: 2.93
A125: 2006-05-11 | B125: 2.89 | C125: 2.93
A126: 2006-05-18 | B126: 2.92 | C126: 2.96
A127: 2006-05-25 | B127: 2.9 | C127: 2.97
A128: 2006-06-01 | B128: 2.89 | C128: 2.91
A129: 2006-06-08 | B129: 2.95 | C129: 2.96
A130: 2006-06-15 | B130: 2.95 | C130: 2.96
A131: 2006-06-22 | B131: 2.92 | C131: 2.96
A132: 2006-06-29 | B132: 2.95 | C132: 2.96
A133: 2006-07-06 | B133: 3.03 | C133: 2.99
A134: 2006-07-13 | B134: 3.09 | C134: 3.07
A135: 2006-07-20 | B135: 3.1 | C135: 3.07
A136: 2006-07-27 | B136: 3.11 | C136: 3.09
A137: 2006-08-03 | B137: 3.15 | C137: 3.15
A138: 2006-08-10 | B138: 3.17 | C138: 3.17
A139: 2006-08-17 | B139: 3.06 | C139: 3.12
A140: 2006-08-24 | B140: 3.01 | C140: 3.1
A141: 2006-08-31 | B141: 2.92 | C141: 2.93
A142: 2006-09-07 | B142: 2.8 | C142: 2.87
A143: 2006-09-14 | B143: 2.65 | C143: 2.71
A144: 2006-09-21 | B144: 2.48 | C144: 2.54
A145: 2006-09-28 | B145: 2.31 | C145: 2.38
A146: 2006-10-05 | B146: 2.29 | C146: 2.37
A147: 2006-10-12 | B147: 2.28 | C147: 2.36
A148: 2006-10-19 | B148: 2.25 | C148: 2.32
A149: 2006-10-26 | B149: 2.25 | C149: 2.31
A150: 2006-11-02 | B150: 2.28 | C150: 2.33
A151: 2006-11-09 | B151: 2.3 | C151: 2.35
A152: 2006-11-16 | B152: 2.33 | C152: 2.41
A153: 2006-11-23 | B153: 2.31 | C153: 2.35
A154: 2006-11-30 | B154: 2.31 | C154: 2.35
A155: 2006-12-07 | B155: 2.35 | C155: 2.4
A156: 2006-12-14 | B156: 2.34 | C156: 2.4
A157: 2006-12-21 | B157: 2.35 | C157: 2.44
A158: 2006-12-28 | B158: 2.36 | C158: 2.4
A159: 2007-01-04 | B159: 2.35 | C159: 2.4
A160: 2007-01-11 | B160: 2.28 | C160: 2.35
A161: 2007-01-18 | B161: 2.15 | C161: 2.19
A162: 2007-01-25 | B162: 2.04 | C162: 2.1
A163: 2007-02-01 | B163: 2.17 | C163: 2.18
A164: 2007-02-08 | B164: 2.24 | C164: 2.23
A165: 2007-02-15 | B165: 2.29 | C165: 2.3
A166: 2007-02-22 | B166: 2.38 | C166: 2.43
A167: 2007-03-01 | B167: 2.48 | C167: 2.52
A168: 2007-03-08 | B168: 2.561 | C168: 2.597
A169: 2007-03-15 | B169: 2.54 | C169: 2.64
A170: 2007-03-22 | B170: 2.53 | C170: 2.61
A171: 2007-03-29 | B171: 2.6 | C171: 2.66
A172: 2007-04-05 | B172: 2.7 | C172: 2.75
A173: 2007-04-12 | B173: 2.8 | C173: 2.77
A174: 2007-04-19 | B174: 2.89 | C174: 2.9
A175: 2007-04-26 | B175: 2.87 | C175: 2.91
A176: 2007-05-03 | B176: 3.07 | C176: 3.07
A177: 2007-05-10 | B177: 3.16 | C177: 3.15
A178: 2007-05-17 | B178: 3.32 | C178: 3.28
A179: 2007-05-24 | B179: 3.47 | C179: 3.45
A180: 2007-05-31 | B180: 3.41 | C180: 3.37
A181: 2007-06-07 | B181: 3.31 | C181: 3.31
A182: 2007-06-14 | B182: 3.13 | C182: 3.18
A183: 2007-06-21 | B183: 3.06 | C183: 3.09
A184: 2007-06-28 | B184: 3.06 | C184: 3.08
A185: 2007-07-05 | B185: 3.06 | C185: 3.08
A186: 2007-07-12 | B186: 3.21 | C186: 3.17
A187: 2007-07-19 | B187: 3.25 | C187: 3.28
A188: 2007-07-26 | B188: 3.07 | C188: 3.19
A189: 2007-08-02 | B189: 2.96 | C189: 3.11
A190: 2007-08-09 | B190: 2.92 | C190: 3.04
A191: 2007-08-16 | B191: 2.89 | C191: 3
A192: 2007-08-23 | B192: 2.95 | C192: 3
A193: 2007-08-30 | B193: 3 | C193: 3.07
A194: 2007-09-06 | B194: 3.1 | C194: 3.16
A195: 2007-09-13 | B195: 3.05 | C195: 3.13
A196: 2007-09-20 | B196: 2.98 | C196: 3.11
A197: 2007-09-27 | B197: 2.96 | C197: 3.08
A198: 2007-10-04 | B198: 2.89 | C198: 3.01
A199: 2007-10-11 | B199: 2.85 | C199: 2.95
A200: 2007-10-18 | B200: 2.84 | C200: 2.91
... 417 more rows

Sheet work details
A2: 17. AAA | B2: Gasoline Prices | C2: http://fuelgaugereport.opisnet.com/WIavg.asp | D2: click metro areas
A4: cvcerd folder, economic indicators folder, data, folder, sls_tx_oth_consump folder
A5: File Name: aaa_gasprice_data.xls
A7: Get weekly each Thursday**Important**
A9: Get price on Thursday and then calculate average over one month (create average formula)
A10: -calculate real $ using CPI (pull down formulas)
A12: -average monthly price per gallon for regular unleaded.
A14: wgas_wi: weekly gas price in WI
A15: mgas_wi:montly gas price WI
A17: wgas_ec: weekly gas price EC
A18: mgas_ec monthly gas price EC
A20: Use Data Timing Rule: 3rd or less is part of previous month, 4th or more is part of next month

Sheet $ by Month
A1: month | B1: Month WI | C1: WI Real | D1: Month EC | E1: EC Real | F1: MidWest CPI | G1: CPI Base 1996 | H1: base: 1996=100 | J1: Month WI | K1: WI Real | L1: Month EC | M1: EC Real | N1: MidWest CPI | O1: CPI Base 1996
A2: 2004-01-01 | B2: =AVERAGE('$ by Week'!B2:B6) -> 1.622 | C2: =(B2/G2)*100 -> 1.383235693 | D2: =AVERAGE('$ by Week'!C2:D6) -> 1.624 | E2: =(D2/G2)*100 -> 1.384941286 | F2: 179.4 | G2: =(F2/$H$2)*100 -> 117.2612887 | H2: 152.9916667 | J2: 1.622 | K2: 1.383235693 | L2: 1.624 | M2: 1.384941286 | N2: 179.4 | O2: 117.2612887
A3: 2004-02-01 | B3: =AVERAGE('$ by Week'!B7:B10) -> 1.7 | C3: =(B3/G3)*100 -> 1.44331761 | D3: =AVERAGE('$ by Week'!C7:C10) -> 1.7025 | E3: =(D3/G3)*100 -> 1.445440136 | F3: 180.2 | G3: =(F3/$H$2)*100 -> 117.784193 | J3: 1.7 | K3: 1.44331761 | L3: 1.7025 | M3: 1.445440136 | N3: 180.2 | O3: 117.784193
A4: 2004-03-01 | B4: =AVERAGE('$ by Week'!B11:B14) -> 1.76 | C4: 1.487653775 | D4: =AVERAGE('$ by Week'!C11:C14) -> 1.7875 | E4: 1.510898366 | F4: 181 | G4: 118.3070973 | J4: 1.76 | K4: 1.487653775 | L4: 1.7875 | M4: 1.510898366 | N4: 181 | O4: 118.3070973
A5: 2004-04-01 | B5: =AVERAGE('$ by Week'!B15:B19) -> 1.836 | C5: 1.547618182 | D5: =AVERAGE('$ by Week'!C15:C19) -> 1.872 | E5: 1.577963636 | F5: 181.5 | G5: 118.6339125 | J5: 1.836 | K5: 1.547618182 | L5: 1.872 | M5: 1.577963636 | N5: 181.5 | O5: 118.6339125
A6: 2004-05-01 | B6: =AVERAGE('$ by Week'!B20:B23) -> 2.0375 | C6: 1.704322148 | D6: =AVERAGE('$ by Week'!C20:C23) -> 2.0625 | E6: 1.725234076 | F6: 182.9 | G6: 119.548995 | J6: 2.0375 | K6: 1.704322148 | L6: 2.0625 | M6: 1.725234076 | N6: 182.9 | O6: 119.548995
A7: 2004-06-01 | B7: =AVERAGE('$ by Week'!B24:B27) -> 2.0375 | C7: 1.700602951 | D7: =AVERAGE('$ by Week'!C24:C27) -> 2.05 | E7: 1.711036097 | F7: 183.3 | G7: 119.8104472 | J7: 2.0375 | K7: 1.700602951 | L7: 2.05 | M7: 1.711036097 | N7: 183.3 | O7: 119.8104472
A8: 2004-07-01 | B8: =AVERAGE('$ by Week'!B28:B32) -> 1.94 | C8: 1.620108261 | D8: =AVERAGE('$ by Week'!C28:C32) -> 1.976 | E8: 1.650172125 | F8: 183.2 | G8: 119.7450842 | J8: 1.94 | K8: 1.620108261 | L8: 1.976 | M8: 1.650172125 | N8: 183.2 | O8: 119.7450842
A9: 2004-08-01 | B9: =AVERAGE('$ by Week'!B33:B36) -> 1.9575 | C9: 1.63383081 | D9: =AVERAGE('$ by Week'!C33:C36) -> 2 | E9: 1.66930351 | F9: 183.3 | G9: 119.8104472 | J9: 1.9575 | K9: 1.63383081 | L9: 2 | M9: 1.66930351 | N9: 183.3 | O9: 119.8104472
A10: 2004-09-01 | B10: =AVERAGE('$ by Week'!B37:B41) -> 1.936 | C10: 1.613245461 | D10: =AVERAGE('$ by Week'!C37:C41) -> 1.952 | E10: 1.626578068 | F10: 183.6 | G10: 120.0065363 | J10: 1.936 | K10: 1.613245461 | L10: 1.952 | M10: 1.626578068 | N10: 183.6 | O10: 120.0065363
A11: 2004-10-01 | B11: =AVERAGE('$ by Week'!B42:B45) -> 2.0725 | C11: 1.718564928 | D11: =AVERAGE('$ by Week'!C42:C45) -> 2.09 | E11: 1.733076332 | F11: 184.5 | G11: 120.5948036 | J11: 2.0725 | K11: 1.718564928 | L11: 2.09 | M11: 1.733076332 | N11: 184.5 | O11: 120.5948036
A12: 2004-11-01 | B12: =AVERAGE('$ by Week'!B46:B49) -> 2.04 | C12: 1.688869048 | D12: =AVERAGE('$ by Week'!C46:C49) -> 2.075 | E12: 1.717844742 | F12: 184.8 | G12: 120.7908928 | J12: 2.04 | K12: 1.688869048 | L12: 2.075 | M12: 1.717844742 | N12: 184.8 | O12: 120.7908928
A13: 2004-12-01 | B13: =AVERAGE('$ by Week'!B50:B54) -> 1.88 | C13: 1.564876678 | D13: =AVERAGE('$ by Week'!C50:C54) -> 1.896 | E13: 1.578194777 | F13: 183.8 | G13: 120.1372624 | J13: 1.88 | K13: 1.564876678 | L13: 1.896 | M13: 1.578194777 | N13: 183.8 | O13: 120.1372624
A14: 2005-01-01 | B14: =AVERAGE('$ by Week'!B55:B58) -> 1.88425 | C14: 1.565858489 | D14: =AVERAGE('$ by Week'!C55:C58) -> 1.91875 | E14: 1.594528845 | F14: 184.1 | G14: 120.3333515 | J14: 1.88425 | K14: 1.565858489 | L14: 1.91875 | M14: 1.594528845 | N14: 184.1 | O14: 120.3333515
A15: 2005-02-01 | B15: =AVERAGE('$ by Week'!B59:B62) -> 1.99 | C15: 1.643916937 | D15: =AVERAGE('$ by Week'!C59:C62) -> 2 | E15: 1.652177826 | F15: 185.2 | G15: 121.0523449 | J15: 1.99 | K15: 1.643916937 | L15: 2 | M15: 1.652177826 | N15: 185.2 | O15: 121.0523449
A16: 2005-03-01 | B16: =AVERAGE('$ by Week'!B63:B67) -> 2.134 | C16: 1.752464931 | D16: =AVERAGE('$ by Week'!C63:C67) -> 2.18 | E16: 1.790240651 | F16: 186.3 | G16: 121.7713383 | J16: 2.134 | K16: 1.752464931 | L16: 2.18 | M16: 1.790240651 | N16: 186.3 | O16: 121.7713383
A17: 2005-04-01 | B17: =AVERAGE('$ by Week'!B68:B71) -> 2.2875 | C17: 1.864509523 | D17: =AVERAGE('$ by Week'!C68:C71) -> 2.3 | E17: 1.8746981 | F17: 187.7 | G17: 122.6864208 | J17: 2.2875 | K17: 1.864509523 | L17: 2.3 | M17: 1.8746981 | N17: 187.7 | O17: 122.6864208
A18: 2005-05-01 | B18: =AVERAGE('$ by Week'!B72:B75) -> 2.2125 | C18: =(B18/G18)*100 -> 1.806265008 | D18: =AVERAGE('$ by Week'!C72:C75) -> 2.235 | E18: 1.824633805 | F18: 187.4 | G18: 122.4903317 | J18: 2.2125 | K18: 1.806265008 | L18: 2.235 | M18: 1.824633805 | N18: 187.4 | O18: 122.4903317
A19: 2005-06-01 | B19: =AVERAGE('$ by Week'!B76:B80) -> 2.218 | C19: 1.806898385 | D19: =AVERAGE('$ by Week'!C76:C80) -> 2.246 | E19: 1.829708644 | F19: 187.8 | G19: 122.7517839 | J19: 2.218 | K19: 1.806898385 | L19: 2.246 | M19: 1.829708644 | N19: 187.8 | O19: 122.7517839
A20: 2005-07-01 | B20: =AVERAGE('$ by Week'!B81:B84) -> 2.3525 | C20: 1.910365689 | D20: =AVERAGE('$ by Week'!C81:C84) -> 2.3725 | E20: 1.926606843 | F20: 188.4 | G20: 123.1439621 | J20: 2.3525 | K20: 1.910365689 | L20: 2.3725 | M20: 1.926606843 | N20: 188.4 | O20: 123.1439621
A21: 2005-08-01 | B21: =AVERAGE('$ by Week'!B85:B88) -> 2.55 | C21: 2.056556405 | D21: =AVERAGE('$ by Week'!C85:C88) -> 2.545 | E21: 2.052523941 | F21: 189.7 | G21: 123.9936816 | J21: 2.55 | K21: 2.056556405 | L21: 2.545 | M21: 2.052523941 | N21: 189.7 | O21: 123.9936816
A22: 2005-09-01 | B22: =AVERAGE('$ by Week'!B89:B93) -> 2.826 | C22: 2.245997143 | D22: =AVERAGE('$ by Week'!C89:C93) -> 2.864 | E22: 2.276198095 | F22: 192.5 | G22: 125.8238466 | J22: 2.826 | K22: 2.245997143 | L22: 2.864 | M22: 2.276198095 | N22: 192.5 | O22: 125.8238466
A23: 2005-10-01 | B23: =AVERAGE('$ by Week'!B94:B97) -> 2.76 | C23: 2.198110359 | D23: =AVERAGE('$ by Week'!C94:C97) -> 2.7225 | E23: 2.168244729 | F23: 192.1 | G23: 125.5623945 | J23: 2.76 | K23: 2.198110359 | L23: 2.7225 | M23: 2.168244729 | N23: 192.1 | O23: 125.5623945
A24: 2005-11-01 | B24: =AVERAGE('$ by Week'!B98:B101) -> 2.335 | C24: 1.877223025 | D24: =AVERAGE('$ by Week'!C98:C101) -> 2.35 | E24: 1.889282274 | F24: 190.3 | G24: 124.3858598 | J24: 2.335 | K24: 1.877223025 | L24: 2.35 | M24: 1.889282274 | N24: 190.3 | O24: 124.3858598
A25: 2005-12-01 | B25: =AVERAGE('$ by Week'!B102:B106) -> 2.237 | C25: 1.804124187 | D25: =AVERAGE('$ by Week'!C102:C106) -> 2.2606 | E25: 1.823157415 | F25: 189.7 | G25: 123.9936816 | J25: 2.237 | K25: 1.804124187 | L25: 2.2606 | M25: 1.823157415 | N25: 189.7 | O25: 123.9936816
A26: 2006-01-01 | B26: =AVERAGE('$ by Week'!B107:B110) -> 2.37 | C26: 1.900368187 | D26: =AVERAGE('$ by Week'!C107:C110) -> 2.3575 | E26: 1.890345148 | F26: 190.8 | G26: 124.712675 | J26: 2.37 | K26: 1.900368187 | L26: 2.3575 | M26: 1.890345148 | N26: 190.8 | O26: 124.712675
A27: 2006-02-01 | B27: =AVERAGE('$ by Week'!B111:B114) -> 2.345 | C27: 1.881308119 | D27: =AVERAGE('$ by Week'!C111:C114) -> 2.3675 | E27: 1.89935905 | F27: 190.7 | G27: 124.6473119 | J27: 2.345 | K27: 1.881308119 | L27: 2.3675 | M27: 1.89935905 | N27: 190.7 | O27: 124.6473119
A28: 2006-03-01 | B28: =AVERAGE('$ by Week'!B115:B119) -> 2.478 | C28: 1.974548698 | D28: =AVERAGE('$ by Week'!C115:C119) -> 2.484 | E28: 1.979329688 | F28: 192 | G28: 125.4970314 | J28: 2.478 | K28: 1.974548698 | L28: 2.484 | M28: 1.979329688 | N28: 192 | O28: 125.4970314
A29: 2006-04-01 | B29: =AVERAGE('$ by Week'!B120:B123) -> 2.79 | C29: 2.211641192 | D29: =AVERAGE('$ by Week'!C120:C123) -> 2.785 | E29: 2.207677677 | F29: 193 | G29: 126.1506618 | J29: 2.79 | K29: 2.211641192 | L29: 2.785 | M29: 2.207677677 | N29: 193 | O29: 126.1506618
A30: 2006-05-01 | B30: =AVERAGE('$ by Week'!B124:B127) -> 2.9125 | C30: 2.301592093 | D30: =AVERAGE('$ by Week'!C124:C127) -> 2.9475 | E30: 2.32925071 | F30: 193.6 | G30: 126.54284 | J30: 2.9125 | K30: 2.301592093 | L30: 2.9475 | M30: 2.32925071 | N30: 193.6 | O30: 126.54284
A31: 2006-06-01 | B31: =AVERAGE('$ by Week'!B128:B132) -> 2.932 | C31: 2.311033316 | D31: =AVERAGE('$ by Week'!C128:C132) -> 2.95 | E31: 2.325221106 | F31: 194.1 | G31: 126.8696552 | J31: 2.932 | K31: 2.311033316 | L31: 2.95 | M31: 2.325221106 | N31: 194.1 | O31: 126.8696552
A32: 2006-07-01 | B32: =AVERAGE('$ by Week'!B133:B136) -> 3.0825 | C32: 2.423416303 | D32: =AVERAGE('$ by Week'!C133:C136) -> 3.055 | E32: 2.401796206 | F32: 194.6 | G32: 127.1964704 | J32: 3.0825 | K32: 2.423416303 | L32: 3.055 | M32: 2.401796206 | N32: 194.6 | O32: 127.1964704
A33: 2006-08-01 | B33: =AVERAGE('$ by Week'!B137:B141) -> 3.062 | C33: 2.401130104 | D33: =AVERAGE('$ by Week'!C137:C141) -> 3.094 | E33: 2.426223561 | F33: 195.1 | G33: 127.5232856 | J33: 3.062 | K33: 2.401130104 | L33: 3.094 | M33: 2.426223561 | N33: 195.1 | O33: 127.5232856
A34: 2006-09-01 | B34: =AVERAGE('$ by Week'!B142:B145) -> 2.56 | C34: 2.021985889 | D34: =AVERAGE('$ by Week'!C142:C145) -> 2.625 | E34: 2.073325374 | F34: 193.7 | G34: 126.6082031 | J34: 2.56 | K34: 2.021985889 | L34: 2.625 | M34: 2.073325374 | N34: 193.7 | O34: 126.6082031
A35: 2006-10-01 | B35: =AVERAGE('$ by Week'!B146:B149) -> 2.2675 | C35: 1.803996902 | D35: =AVERAGE('$ by Week'!C146:C149) -> 2.34 | E35: 1.861677067 | F35: 192.3 | G35: 125.6931205 | J35: 2.2675 | K35: 1.803996902 | L35: 2.34 | M35: 1.861677067 | N35: 192.3 | O35: 125.6931205
A36: 2006-11-01 | B36: =AVERAGE('$ by Week'!B150:B154) -> 2.306 | C36: 1.829869208 | D36: =AVERAGE('$ by Week'!C150:C154) -> 2.358 | E36: 1.871132521 | F36: 192.8 | G36: 126.0199357 | J36: 2.306 | K36: 1.829869208 | L36: 2.358 | M36: 1.871132521 | N36: 192.8 | O36: 126.0199357
A37: 2006-12-01 | B37: =AVERAGE('$ by Week'!B155:B158) -> 2.35 | C37: 1.863817608 | D37: =AVERAGE('$ by Week'!C155:C158) -> 2.41 | E37: 1.911404441 | F37: 192.9 | G37: 126.0852988 | J37: 2.35 | K37: 1.863817608 | L37: 2.41 | M37: 1.911404441 | N37: 192.9 | O37: 126.0852988
A38: 2007-01-01 | B38: =AVERAGE('$ by Week'!B159:B162) -> 2.205 | C38: 1.74700479 | D38: =AVERAGE('$ by Week'!C159:C162) -> 2.26 | E38: 1.790580873 | F38: 193.1 | G38: 126.2160248 | J38: 2.205 | K38: 1.74700479 | L38: 2.26 | M38: 1.790580873 | N38: 193.1 | O38: 126.2160248
A39: 2007-02-01 | B39: =AVERAGE('$ by Week'!B163:B166) -> 2.27 | C39: 1.785558269 | D39: =AVERAGE('$ by Week'!C163:C166) -> 2.285 | E39: 1.797357112 | F39: 194.5 | G39: =(F39/$H$2)*100 -> 127.1311074 | J39: 2.27 | K39: 1.785558269 | L39: 2.285 | M39: 1.797357112 | N39: 194.5 | O39: 127.1311074
A40: 2007-03-01 | B40: =AVERAGE('$ by Week'!B167:B171) -> 2.5422 | C40: 1.980322887 | D40: =AVERAGE('$ by Week'!C167:C171) -> 2.6054 | E40: 2.029554421 | F40: 196.4 | G40: 128.3730051 | J40: 2.5422 | K40: 1.980322887 | L40: 2.6054 | M40: 2.029554421 | N40: 196.4 | O40: 128.3730051
A41: 2007-04-01 | B41: =AVERAGE('$ by Week'!B172:B175) -> 2.815 | C41: 2.181720069 | D41: =AVERAGE('$ by Week'!C172:C175) -> 2.8325 | E41: 2.19528316 | F41: 197.4 | G41: 129.0266354 | J41: 2.815 | K41: 2.181720069 | L41: 2.8325 | M41: 2.19528316 | N41: 197.4 | O41: 129.0266354
A42: 2007-05-01 | B42: =AVERAGE('$ by Week'!B176:B180) -> 3.286 | C42: 2.523748076 | D42: =AVERAGE('$ by Week'!C176:C180) -> 3.264 | E42: 2.506851406 | F42: 199.2 | G42: 130.2031701 | J42: 3.286 | K42: 2.523748076 | L42: 3.264 | M42: 2.506851406 | N42: 199.2 | O42: 130.2031701
A43: 2007-06-01 | B43: =AVERAGE('$ by Week'!B181:B184) -> 3.14 | C43: 2.410405586 | D43: =AVERAGE('$ by Week'!C181:C184) -> 3.165 | E43: 2.429596713 | F43: 199.3 | G43: 130.2685331 | J43: 3.14 | K43: 2.410405586 | L43: 3.165 | M43: 2.429596713 | N43: 199.3 | O43: 130.2685331
A44: 2007-07-01 | B44: =AVERAGE('$ by Week'!B185:B188) -> 3.1475 | C44: 2.419805381 | D44: =AVERAGE('$ by Week'!C185:C188) -> 3.18 | E44: 2.444791457 | F44: 199 | G44: 130.072444 | J44: 3.1475 | K44: 2.419805381 | L44: 3.18 | M44: 2.444791457 | N44: 199 | O44: 130.072444
A45: 2007-08-01 | B45: =AVERAGE('$ by Week'!B189:B193) -> 2.944 | C45: 2.267912722 | D45: =AVERAGE('$ by Week'!C189:C193) -> 3.044 | E45: 2.344947801 | F45: 198.6 | G45: 129.8109919 | J45: 2.944 | K45: 2.267912722 | L45: 3.044 | M45: 2.344947801 | N45: 198.6 | O45: 129.8109919
A46: 2007-09-01 | B46: =AVERAGE('$ by Week'!B194:B197) -> 3.0225 | C46: 2.315559902 | D46: =AVERAGE('$ by Week'!C194:C197) -> 3.12 | E46: 2.390255383 | F46: 199.7 | G46: 130.5299853 | J46: 3.0225 | K46: 2.315559902 | L46: 3.12 | M46: 2.390255383 | N46: 199.7 | O46: 130.5299853
A47: 2007-10-01 | B47: =AVERAGE('$ by Week'!B198:B201) -> 2.86 | C47: =(B47/G47)*100 -> 2.193263993 | D47: =AVERAGE('$ by Week'!C198:C201) -> 2.95 | E47: 2.26228279 | F47: 199.5 | G47: 130.3992592 | J47: 2.86 | K47: 2.193263993 | L47: 2.95 | M47: 2.26228279 | N47: 199.5 | O47: 130.3992592
A48: 2007-11-01 | B48: =AVERAGE('$ by Week'!B202:B206) -> 3.11 | C48: 2.369542248 | D48: =AVERAGE('$ by Week'!C202:C206) -> 3.172 | E48: 2.41678071 | F48: 200.8 | G48: 131.2489787 | J48: 3.11 | K48: 2.369542248 | L48: 3.172 | M48: 2.41678071 | N48: 200.8 | O48: 131.2489787
A49: 2007-12-01 | B49: =AVERAGE('$ by Week'!B207:B210) -> 2.9875 | C49: 2.283029991 | D49: =AVERAGE('$ by Week'!C207:C210) -> 3.075 | E49: 2.349896978 | F49: 200.2 | G49: 130.8568005 | J49: 2.9875 | K49: 2.283029991 | L49: 3.075 | M49: 2.349896978 | N49: 200.2 | O49: 130.8568005
A50: 2008-01-01 | B50: =AVERAGE('$ by Week'!B211:B215) -> 3.058 | C50: 2.322981711 | D50: =AVERAGE('$ by Week'!C211:C215) -> 3.138 | E50: =(D50/G50)*100 -> 2.383752979 | F50: 201.4 | G50: 131.6411569 | J50: 3.058 | K50: 2.322981711 | L50: 3.138 | M50: 2.383752979 | N50: 201.4 | O50: 131.6411569
A51: 2008-02-01 | B51: =AVERAGE('$ by Week'!B216:B219) -> 3.1055 | C51: 2.353222491 | D51: =AVERAGE('$ by Week'!C216:C219) -> 3.12525 | E51: 2.368188243 | F51: 201.9 | G51: 131.9679721 | J51: 3.1055 | K51: 2.353222491 | L51: 3.12525 | M51: 2.368188243 | N51: 201.9 | O51: 131.9679721
A52: 2008-03-01 | B52: =AVERAGE('$ by Week'!B220:B223) -> 3.23425 | C52: 2.429127628 | D52: =AVERAGE('$ by Week'!C220:C223) -> 3.246 | E52: 2.437952626 | F52: 203.7 | G52: 133.1445068 | J52: 3.23425 | K52: 2.429127628 | L52: 3.246 | M52: 2.437952626 | N52: 203.7 | O52: 133.1445068
A53: 2008-04-01 | B53: =AVERAGE('$ by Week'!B224:B227) -> 3.462 | C53: =(B53/G53)*100 -> 2.578661879 | D53: =AVERAGE('$ by Week'!C224:C227) -> 3.47875 | E53: 2.591138074 | F53: 205.4 | G53: 134.2556784 | J53: 3.462 | K53: 2.578661879 | L53: 3.47875 | M53: 2.591138074 | N53: 205.4 | O53: 134.2556784
A54: 2008-05-01 | B54: =AVERAGE('$ by Week'!B228:B232) -> 3.8164 | C54: 2.817941104 | D54: =AVERAGE('$ by Week'!C228:C232) -> 3.7982 | E54: 2.804502646 | F54: 207.2 | G54: 135.4322131 | J54: 3.8164 | K54: 2.817941104 | L54: 3.7982 | M54: 2.804502646 | N54: 207.2 | O54: 135.4322131
A55: 2008-06-01 | B55: =AVERAGE('$ by Week'!B233:B236) -> 3.995 | C55: 2.924410088 | D55: =AVERAGE('$ by Week'!C233:C236) -> 3.99 | E55: 2.92075 | F55: 209 | G55: 136.6087478 | J55: 3.995 | K55: 2.924410088 | L55: 3.99 | M55: 2.92075 | N55: 209 | O55: 136.6087478
A56: 2008-07-01 | B56: =AVERAGE('$ by Week'!B237:B241) -> 4.012 | C56: 2.921478185 | D56: =AVERAGE('$ by Week'!C237:C241) -> 4.01 | E56: 2.920021815 | F56: 210.1 | G56: 137.3277412 | J56: 4.012 | K56: 2.921478185 | L56: 4.01 | M56: 2.920021815 | N56: 210.1 | O56: 137.3277412
A57: 2008-08-01 | B57: =AVERAGE('$ by Week'!B242:B245) -> 3.797 | C57: 2.774161215 | D57: =AVERAGE('$ by Week'!C242:C245) -> 3.8075 | E57: 2.781832716 | F57: 209.4 | G57: 136.8701999 | J57: 3.797 | K57: 2.774161215 | L57: 3.8075 | M57: 2.781832716 | N57: 209.4 | O57: 136.8701999
A58: 2008-09-01 | B58: =AVERAGE('$ by Week'!B246:B250) -> 3.7716 | C58: 2.756920067 | D58: =AVERAGE('$ by Week'!C246:C250) -> 3.7662 | E58: 2.752972838 | F58: 209.3 | G58: 136.8048369 | J58: 3.7716 | K58: 2.756920067 | L58: 3.7662 | M58: 2.752972838 | N58: 209.3 | O58: 136.8048369
A59: 2008-10-01 | B59: =AVERAGE('$ by Week'!B251:B254) -> 2.884 | C59: 2.141685799 | D59: =AVERAGE('$ by Week'!C251:C254) -> 2.9375 | E59: 2.181415407 | F59: 206.019 | G59: 134.6602756 | J59: 2.884 | K59: 2.141685799 | L59: 2.9375 | M59: 2.181415407 | N59: 206.019 | O59: 134.6602756
A60: 2008-11-01 | B60: =AVERAGE('$ by Week'!B255:B258) -> 2.03325 | C60: 1.54224247 | D60: =AVERAGE('$ by Week'!C255:C258) -> 2.0795 | E60: 1.577323604 | F60: 201.7 | G60: 131.837246 | J60: 2.03325 | K60: 1.54224247 | L60: 2.0795 | M60: 1.577323604 | N60: 201.7 | O60: 131.837246
A61: 2008-12-01 | B61: =AVERAGE('$ by Week'!B259:B262) -> 1.71925 | C61: 1.317909044 | D61: =AVERAGE('$ by Week'!C259:C262) -> 1.829 | E61: 1.402039053 | F61: 199.582 | G61: 130.4528569 | J61: 1.71925 | K61: 1.317909044 | L61: 1.829 | M61: 1.402039053 | N61: 199.582 | O61: 130.4528569
A62: 2009-01-01 | B62: =AVERAGE('$ by Week'!B263:B267) -> 1.878 | C62: 1.430868277 | D62: =AVERAGE('$ by Week'!C263:C267) -> 1.92 | E62: 1.462868526 | F62: 200.8 | G62: 131.2489787 | J62: 1.878 | K62: 1.430868277 | L62: 1.92 | M62: 1.462868526 | N62: 200.8 | O62: 131.2489787
A63: 2009-02-01 | B63: =AVERAGE('$ by Week'!B268:B271) -> 1.9525 | C63: =(B63/G63)*100 -> 1.482462676 | D63: =AVERAGE('$ by Week'!C268:C271) -> 1.9925 | E63: =(D63/G63)*100 -> 1.51283323 | F63: 201.5 | G63: =(F63/$H$2)*100 -> 131.70652 | J63: 1.9525 | K63: 1.482462676 | L63: 1.9925 | M63: 1.51283323 | N63: 201.5 | O63: 131.70652
A64: 2009-03-01 | B64: =AVERAGE('$ by Week'!B272:B276) -> 2.038 | C64: 1.543549587 | D64: =AVERAGE('$ by Week'!C272:C276) -> 2.056 | E64: 1.557182508 | F64: 202 | G64: 132.0333351 | J64: 2.038 | K64: 1.543549587 | L64: 2.056 | M64: 1.557182508 | N64: 202 | O64: 132.0333351
A65: 2009-04-01 | B65: =AVERAGE('$ by Week'!B277:B280) -> 2.085 | C65: 1.576804869 | D65: =AVERAGE('$ by Week'!C277:C280) -> 2.12 | E65: 1.603274015 | F65: 202.3 | G65: 132.2294243 | J65: 2.085 | K65: 1.576804869 | L65: 2.12 | M65: 1.603274015 | N65: 202.3 | O65: 132.2294243
A66: 2009-05-01 | B66: =AVERAGE('$ by Week'!B281:B284) -> 2.3525 | C66: 1.771224881 | D66: =AVERAGE('$ by Week'!C281:C284) -> 2.335 | E66: 1.758048926 | F66: 203.2 | G66: 132.8176916 | J66: 2.3525 | K66: 1.771224881 | L66: 2.335 | M66: 1.758048926 | N66: 203.2 | O66: 132.8176916
A67: 2009-06-01 | B67: =AVERAGE('$ by Week'!B285:B288) -> 2.755 | C67: 2.052054731 | D67: =AVERAGE('$ by Week'!C285:C288) -> 2.735 | E67: 2.037157782 | F67: 205.4 | G67: 134.2556784 | J67: 2.755 | K67: 2.052054731 | L67: 2.735 | M67: 2.037157782 | N67: 205.4 | O67: 134.2556784
A68: 2009-07-01 | B68: =AVERAGE('$ by Week'!B289:B293) -> 2.504 | C68: 1.870562174 | D68: =AVERAGE('$ by Week'!C289:C293) -> 2.556 | E68: 1.909407715 | F68: 204.8 | G68: 133.8635002 | J68: 2.504 | K68: 1.870562174 | L68: 2.556 | M68: 1.909407715 | N68: 204.8 | O68: 133.8635002
A69: 2009-08-01 | B69: =AVERAGE('$ by Week'!B294:B298) -> 2.62 | C69: 1.949601978 | D69: =AVERAGE('$ by Week'!C294:C298) -> 2.644 | E69: 1.967460927 | F69: 205.6 | G69: 134.3864045 | J69: 2.62 | K69: 1.949601978 | L69: 2.644 | M69: 1.967460927 | N69: 205.6 | O69: 134.3864045
A70: 2009-09-01 | B70: =AVERAGE('$ by Week'!B299:B302) -> 2.505 | C70: 1.864027845 | D70: =AVERAGE('$ by Week'!C299:C302) -> 2.5775 | E70: 1.917976755 | F70: 205.6 | G70: 134.3864045 | J70: 2.505 | K70: 1.864027845 | L70: 2.5775 | M70: 1.917976755 | N70: 205.6 | O70: 134.3864045
A71: 2009-10-01 | B71: =AVERAGE('$ by Week'!B303:B306) -> 2.5575 | C71: 1.902169118 | D71: =AVERAGE('$ by Week'!C303:C306) -> 2.5975 | E71: 1.931919563 | F71: 205.7 | G71: 134.4517675 | J71: 2.5575 | K71: 1.902169118 | L71: 2.5975 | M71: 1.931919563 | N71: 205.7 | O71: 134.4517675
A72: 2009-11-01 | B72: =AVERAGE('$ by Week'!B307:B310) -> 2.61 | C72: 1.936509457 | D72: =AVERAGE('$ by Week'!C307:C310) -> 2.755 | E72: 2.044093316 | F72: 206.2 | G72: 134.7785827 | J72: 2.61 | K72: 1.936509457 | L72: 2.755 | M72: 2.044093316 | N72: 206.2 | O72: 134.7785827
A73: 2009-12-01 | B73: =AVERAGE('$ by Week'!B311:B315) -> 2.6 | C73: =(B73/G73)*100 -> 1.93471952 | D73: =AVERAGE('$ by Week'!C311:C315) -> 2.668 | E73: =(D73/G73)*100 -> 1.985319877 | F73: 205.6 | G73: 134.3864045 | J73: 2.6 | K73: 1.93471952 | L73: 2.668 | M73: 1.985319877 | N73: 205.6 | O73: 134.3864045
A74: 2010-01-01 | B74: =AVERAGE('$ by Week'!B316:B319) -> 2.7225 | C74: 2.016068792 | D74: =AVERAGE('$ by Week'!C316:C319) -> 2.775 | E74: 2.054946152 | F74: 206.6 | G74: 135.0400349 | J74: 2.7225 | K74: 2.016068792 | L74: 2.775 | M74: 2.054946152 | N74: 206.6 | O74: 135.0400349
A75: 2010-02-01 | B75: =AVERAGE('$ by Week'!B320:B323) -> 2.6125 | C75: 1.934611467 | D75: =AVERAGE('$ by Week'!C320:C323) -> 2.6875 | E75: 1.990150553 | F75: 206.6 | G75: 135.0400349 | J75: 2.6125 | K75: 1.934611467 | L75: 2.6875 | M75: 1.990150553 | N75: 206.6 | O75: 135.0400349
A76: 2010-03-01 | B76: =AVERAGE('$ by Week'!B324:B328) -> 2.798 | C76: 2.063985937 | D76: =AVERAGE('$ by Week'!C324:C328) -> 2.856 | E76: 2.106770492 | F76: 207.4 | G76: 135.5629392 | J76: 2.798 | K76: 2.063985937 | L76: 2.856 | M76: 2.106770492 | N76: 207.4 | O76: 135.5629392
A77: 2010-04-01 | B77: =AVERAGE('$ by Week'!B329:B332) -> 2.905 | C77: 2.139820855 | D77: =AVERAGE('$ by Week'!C329:C332) -> 2.9325 | E77: 2.160077335 | F77: 207.7 | G77: 135.7590283 | J77: 2.905 | K77: 2.139820855 | L77: 2.9325 | M77: 2.160077335 | N77: 207.7 | O77: 135.7590283
A78: 2010-05-01 | B78: =AVERAGE('$ by Week'!B333:B337) -> 2.804 | C78: 2.062445353 | D78: =AVERAGE('$ by Week'!C333:C337) -> 2.866 | E78: 2.108048638 | F78: 208 | G78: 135.9551174 | J78: 2.804 | K78: 2.062445353 | L78: 2.866 | M78: 2.108048638 | N78: 208 | O78: 135.9551174
A79: 2010-06-01 | B79: =AVERAGE('$ by Week'!B338:B341) -> 2.7025 | C79: 1.988744489 | D79: =AVERAGE('$ by Week'!C338:C341) -> 2.79 | E79: 2.053134921 | F79: 207.9 | G79: 135.8897543 | J79: 2.7025 | K79: 1.988744489 | L79: 2.79 | M79: 2.053134921 | N79: 207.9 | O79: 135.8897543
A80: 2010-07-01 | B80: =AVERAGE('$ by Week'!B342:B345) -> 2.7275 | C80: 2.00424962 | D80: =AVERAGE('$ by Week'!C342:C345) -> 2.8025 | E80: 2.059361892 | F80: 208.2 | G80: 136.0858435 | J80: 2.7275 | K80: 2.00424962 | L80: 2.8025 | M80: 2.059361892 | N80: 208.2 | O80: 136.0858435
A81: 2010-08-01 | B81: =AVERAGE('$ by Week'!B346:B350) -> 2.706 | C81: 1.984637824 | D81: =AVERAGE('$ by Week'!C346:C350) -> 2.768 | E81: 2.030109939 | F81: 208.6 | G81: 136.3472956 | J81: 2.706 | K81: 1.984637824 | L81: 2.768 | M81: 2.030109939 | N81: 208.6 | O81: 136.3472956
A82: 2010-09-01 | B82: =AVERAGE('$ by Week'!B351:B354) -> 2.74 | C82: 2.007649266 | D82: =AVERAGE('$ by Week'!C351:C354) -> 2.8375 | E82: 2.07908934 | F82: 208.8 | G82: 136.4780217 | J82: 2.74 | K82: 2.007649266 | L82: 2.8375 | M82: 2.07908934 | N82: 208.8 | O82: 136.4780217
A83: 2010-10-01 | B83: =AVERAGE('$ by Week'!B351:B354) -> 2.74 | C83: 2.008611244 | D83: =AVERAGE('$ by Week'!C351:C354) -> 2.8375 | E83: 2.080085549 | F83: 208.7 | G83: 136.4126586 | J83: 2.74 | K83: 2.008611244 | L83: 2.8375 | M83: 2.080085549 | N83: 208.7 | O83: 136.4126586
A84: 2010-11-01 | B84: =AVERAGE('$ by Week'!B359:B363) -> 2.89 | C84: 2.117557072 | D84: =AVERAGE('$ by Week'!C359:C363) -> 2.968 | E84: 2.174709132 | F84: 208.8 | G84: 136.4780217 | J84: 2.89 | K84: 2.117557072 | L84: 2.968 | M84: 2.174709132 | N84: 208.8 | O84: 136.4780217
A85: 2010-12-01 | B85: =AVERAGE('$ by Week'!B364:B367) -> 3 | C85: 2.192904921 | D85: =AVERAGE('$ by Week'!C364:C367) -> 3.055 | E85: 2.233108178 | F85: 209.3 | G85: 136.8048369 | J85: 3 | K85: 2.192904921 | L85: 3.055 | M85: 2.233108178 | N85: 209.3 | O85: 136.8048369
A86: 2011-01-01 | B86: =AVERAGE('$ by Week'!B368:B372) -> 3.122 | C86: 2.270152012 | D86: =AVERAGE('$ by Week'!C368:C372) -> 3.214 | E86: 2.337049509 | F86: 210.4 | G86: 137.5238303 | J86: 3.122 | K86: 2.270152012 | L86: 3.214 | M86: 2.337049509 | N86: 210.4 | O86: 137.5238303
A87: 2011-02-01 | B87: =AVERAGE('$ by Week'!B373:B376) -> 3.25 | C87: 2.355390415 | D87: =AVERAGE('$ by Week'!C373:C376) -> 3.3175 | E87: 2.404310062 | F87: 211.1 | G87: 137.9813715 | J87: 3.25 | K87: 2.355390415 | L87: 3.3175 | M87: 2.404310062 | N87: 211.1 | O87: 137.9813715
A88: 2011-03-01 | B88: =AVERAGE('$ by Week'!B377:B380) -> 3.56 | C88: 2.557043818 | D88: =AVERAGE('$ by Week'!C377:C380) -> 3.63 | E88: 2.60732277 | F88: 213 | G88: 139.2232692 | J88: 3.56 | K88: 2.557043818 | L88: 3.63 | M88: 2.60732277 | N88: 213 | O88: 139.2232692
A89: 2011-04-01 | B89: =AVERAGE('$ by Week'!B381:B384) -> 3.885 | C89: 2.770967949 | D89: =AVERAGE('$ by Week'!C381:C384) -> 3.9075 | E89: 2.787016026 | F89: 214.5 | G89: 140.2037148 | J89: 3.885 | K89: 2.770967949 | L89: 3.9075 | M89: 2.787016026 | N89: 214.5 | O89: 140.2037148
A90: 2011-05-01 | B90: =AVERAGE('$ by Week'!B385:B389) -> 4.002 | C90: 2.835908522 | D90: =AVERAGE('$ by Week'!C385:C389) -> 3.974 | E90: 2.816067084 | F90: 215.9 | G90: 141.1187973 | J90: 4.002 | K90: 2.835908522 | L90: 3.974 | M90: 2.816067084 | N90: 215.9 | O90: 141.1187973
A91: 2011-06-01 | B91: =AVERAGE('$ by Week'!B390:B393) -> 3.7 | C91: 2.620690586 | D91: =AVERAGE('$ by Week'!C390:C393) -> 3.7475 | E91: 2.654334587 | F91: 216 | G91: 141.1841604 | J91: 3.7 | K91: 2.620690586 | L91: 3.7475 | M91: 2.654334587 | N91: 216 | O91: 141.1841604
A92: 2011-07-01 | B92: =AVERAGE('$ by Week'!B394:B397) -> 3.705 | C92: 2.6230177 | D92: =AVERAGE('$ by Week'!C394:C397) -> 3.7825 | E92: 2.677885142 | F92: 216.1 | G92: 141.2495234 | J92: 3.705 | K92: 2.6230177 | L92: 3.7825 | M92: 2.677885142 | N92: 216.1 | O92: 141.2495234
A93: 2011-08-01 | B93: =AVERAGE('$ by Week'!B398:B402) -> 3.68 | C93: 2.599304401 | D93: =AVERAGE('$ by Week'!C398:C402) -> 3.782 | E93: 2.671350339 | F93: 216.6 | G93: 141.5763386 | J93: 3.68 | K93: 2.599304401 | L93: 3.782 | M93: 2.671350339 | N93: 216.6 | O93: 141.5763386
A94: 2011-09-01 | B94: =AVERAGE('$ by Week'!B403:B406) -> 3.595 | C94: 2.534585445 | D94: =AVERAGE('$ by Week'!C403:C406) -> 3.695 | E94: 2.605088518 | F94: 217 | G94: 141.8377907 | J94: 3.595 | K94: 2.534585445 | L94: 3.695 | M94: 2.605088518 | N94: 217 | O94: 141.8377907
A95: 2011-10-01 | B95: =AVERAGE('$ by Week'!B407:B411) -> 3.39 | C95: 2.404458739 | D95: =AVERAGE('$ by Week'!C407:C411) -> 3.55 | E95: 2.517943517 | F95: 215.7 | G95: 140.9880712 | J95: 3.39 | K95: 2.404458739 | L95: 3.55 | M95: 2.517943517 | N95: 215.7 | O95: 140.9880712
A96: 2011-11-01 | B96: =AVERAGE('$ by Week'!B412:B415) -> 3.3125 | C96: 2.350579294 | D96: =AVERAGE('$ by Week'!C412:C415) -> 3.425 | E96: 2.430410289 | F96: 215.6 | G96: 140.9227082 | J96: 3.3125 | K96: 2.350579294 | L96: 3.425 | M96: 2.430410289 | N96: 215.6 | O96: 140.9227082
A97: 2011-12-01 | B97: =AVERAGE('$ by Week'!B416:B419) -> 3.2375 | C97: 2.301628814 | D97: =AVERAGE('$ by Week'!C416:C419) -> 3.3425 | E97: 2.376276235 | F97: 215.2 | G97: 140.6612561 | J97: 3.2375 | K97: 2.301628814 | L97: 3.3425 | M97: 2.376276235 | N97: 215.2 | O97: 140.6612561
A98: 2012-01-01 | B98: =AVERAGE('$ by Week'!B420:B424) -> 3.352 | C98: 2.369815465 | D98: =AVERAGE('$ by Week'!C420:C424) -> 3.406 | E98: 2.407992683 | F98: 216.4 | G98: 141.4456125 | J98: 3.352 | K98: 2.369815465 | L98: 3.406 | M98: 2.407992683 | N98: 216.4 | O98: 141.4456125
A99: 2012-02-01 | B99: =AVERAGE('$ by Week'!B425:B428) -> 3.485 | C99: 2.458164861 | D99: =AVERAGE('$ by Week'!C425:C428) -> 3.555 | E99: 2.507539765 | F99: 216.9 | G99: 141.7724277 | J99: 3.485 | K99: 2.458164861 | L99: 3.555 | M99: 2.507539765 | N99: 216.9 | O99: 141.7724277
A100: 2012-03-01 | B100: =AVERAGE('$ by Week'!B429:B432) -> 3.895 | C100: 2.721016172 | D100: =AVERAGE('$ by Week'!C429:C432) -> 3.8425 | E100: 2.684340088 | F100: 219 | G100: 143.1450515 | J100: 3.895 | K100: 2.721016172 | L100: 3.8425 | M100: 2.684340088 | N100: 219 | O100: 143.1450515
A101: 2012-04-01 | B101: =AVERAGE('$ by Week'!B433:B437) -> 3.874 | C101: 2.701411653 | D101: =AVERAGE('$ by Week'!C433:C437) -> 3.86 | E101: 2.691649195 | F101: 219.4 | G101: 143.4065036 | J101: 3.874 | K101: 2.701411653 | L101: 3.86 | M101: 2.691649195 | N101: 219.4 | O101: 143.4065036
A102: 2012-05-01 | B102: =AVERAGE('$ by Week'!B438:B441) -> 3.7125 | C102: 2.5923394 | D102: =AVERAGE('$ by Week'!C438:C441) -> 3.725 | E102: 2.601067815 | F102: 219.1 | G102: 143.2104145 | J102: 3.7125 | K102: 2.5923394 | L102: 3.725 | M102: 2.601067815 | N102: 219.1 | O102: 143.2104145
A103: 2012-06-01 | B103: =AVERAGE('$ by Week'!B442:B445) -> 3.5575 | C103: 2.485241343 | D103: =AVERAGE('$ by Week'!C442:C445) -> 3.635 | E103: 2.53938223 | F103: 219 | G103: 143.1450515 | J103: 3.5575 | K103: 2.485241343 | L103: 3.635 | M103: 2.53938223 | N103: 219 | O103: 143.1450515
A104: 2012-07-01 | B104: =AVERAGE('$ by Week'!B446:B450) -> 3.504 | C104: 2.447866667 | D104: =AVERAGE('$ by Week'!C446:C450) -> 3.606 | E104: 2.519123059 | F104: 219 | G104: 143.1450515 | J104: 3.504 | K104: 2.447866667 | L104: 3.606 | M104: 2.519123059 | N104: 219 | O104: 143.1450515
A105: 2012-08-01 | B105: =AVERAGE('$ by Week'!B451:B454) -> 3.9 | C105: 2.705975057 | D105: =AVERAGE('$ by Week'!C451:C454) -> 3.89 | E105: 2.699036659 | F105: 220.5 | G105: 144.125497 | J105: 3.9 | K105: 2.705975057 | L105: 3.89 | M105: 2.699036659 | N105: 220.5 | O105: 144.125497
A106: 2012-09-01 | B106: =AVERAGE('$ by Week'!B455:B459) -> 3.904 | C106: 2.701399668 | D106: =AVERAGE('$ by Week'!C455:C459) -> 3.954 | E106: 2.735997512 | F106: 221.1 | G106: 144.5176753 | J106: 3.904 | K106: 2.701399668 | L106: 3.954 | M106: 2.735997512 | N106: 221.1 | O106: 144.5176753
A107: 2012-10-01 | B107: =AVERAGE('$ by Week'!B460:B463) -> 3.5975 | C107: 2.497221056 | D107: =AVERAGE('$ by Week'!C460:C463) -> 3.6675 | E107: 2.545811876 | F107: 220.4 | G107: 144.060134 | J107: 3.5975 | K107: 2.497221056 | L107: 3.6675 | M107: 2.545811876 | N107: 220.4 | O107: 144.060134
A108: 2012-11-01 | B108: =AVERAGE('$ by Week'!B464:B467) -> 3.4125 | C108: 2.378515091 | D108: =AVERAGE('$ by Week'!C464:C467) -> 3.4275 | E108: 2.388970103 | F108: 219.5 | G108: 143.4718667 | J108: 3.4125 | K108: 2.378515091 | L108: 3.4275 | M108: 2.388970103 | N108: 219.5 | O108: 143.4718667
A109: 2012-12-01 | B109: =AVERAGE('$ by Week'!B468:B472) -> 3.256 | C109: 2.27461583 | D109: =AVERAGE('$ by Week'!C468:C472) -> 3.284 | E109: 2.294176408 | F109: 219 | G109: 143.1450515 | J109: 3.256 | K109: 2.27461583 | L109: 3.284 | M109: 2.294176408 | N109: 219 | O109: 143.1450515
A110: 2013-01-01 | B110: =AVERAGE('$ by Week'!B473:B476) -> 3.2575 | C110: 2.272550635 | D110: =AVERAGE('$ by Week'!C473:C476) -> 3.2675 | E110: 2.279526999 | F110: 219.3 | G110: 143.3411406 | J110: 3.2575 | K110: 2.272550635 | L110: 3.2675 | M110: 2.279526999 | N110: 219.3 | O110: 143.3411406
A111: 2013-02-01 | B111: =AVERAGE('$ by Week'!B477:B480) -> 3.6825 | C111: 2.542381825 | D111: =AVERAGE('$ by Week'!C477:C480) -> 3.7325 | E111: 2.576901606 | F111: 221.6 | G111: 144.8444904 | J111: 3.6825 | K111: 2.542381825 | L111: 3.7325 | M111: 2.576901606 | N111: 221.6 | O111: 144.8444904
A112: 2013-03-01 | B112: =AVERAGE('$ by Week'!B481:B484) -> 3.69 | C112: 2.541824629 | D112: =AVERAGE('$ by Week'!C481:C484) -> 3.735 | E112: 2.57282249 | F112: 222.1 | G112: 145.1713056 | J112: 3.69 | K112: 2.541824629 | L112: 3.735 | M112: 2.57282249 | N112: 222.1 | O112: 145.1713056
A113: 2013-04-01 | B113: =AVERAGE('$ by Week'!B485:B489) -> 3.626 | C113: 2.499990011 | D113: =AVERAGE('$ by Week'!C485:C489) -> 3.598 | E113: 2.480685068 | F113: 221.9 | G113: 145.0405796 | J113: 3.626 | K113: 2.499990011 | L113: 3.598 | M113: 2.480685068 | N113: 221.9 | O113: 145.0405796
A114: 2013-05-01 | B114: =AVERAGE('$ by Week'!B490:B493) -> 3.8725 | C114: 2.655581484 | D114: =AVERAGE('$ by Week'!C490:C493) -> 3.985 | E114: 2.732728784 | F114: 223.1 | G114: 145.824936 | J114: 3.8725 | K114: 2.655581484 | L114: 3.985 | M114: 2.732728784 | N114: 223.1 | O114: 145.824936
A115: 2013-06-01 | B115: =AVERAGE('$ by Week'!B494:B497) -> 3.6275 | C115: 2.479791201 | D115: =AVERAGE('$ by Week'!C494:C497) -> 3.6625 | E115: 2.503717512 | F115: 223.8 | G115: 146.2824773 | J115: 3.6275 | K115: 2.479791201 | L115: 3.6625 | M115: 2.503717512 | N115: 223.8 | O115: 146.2824773
A116: 2013-07-01 | B116: =AVERAGE('$ by Week'!B498:B502) -> 3.588 | C116: 2.462692239 | D116: =AVERAGE('$ by Week'!C498:C502) -> 3.672 | E116: 2.520347241 | F116: 222.9 | G116: 145.6942099 | J116: 3.588 | K116: 2.462692239 | L116: 3.672 | M116: 2.520347241 | N116: 222.9 | O116: 145.6942099
A117: 2013-08-01 | B117: =AVERAGE('$ by Week'!B503:B506) -> 3.5825 | C117: 2.457814555 | D117: =AVERAGE('$ by Week'!C503:C506) -> 3.6225 | E117: 2.485257007 | F117: 223 | G117: 145.759573 | J117: 3.5825 | K117: 2.457814555 | L117: 3.6225 | M117: 2.485257007 | N117: 223 | O117: 145.759573
A118: 2013-09-01 | B118: =AVERAGE('$ by Week'!B507:B511) -> 3.526 | C118: 2.415802135 | D118: =AVERAGE('$ by Week'!C507:C511) -> 3.61 | E118: 2.473353859 | F118: 223.3 | G118: 145.9556621 | J118: 3.526 | K118: 2.415802135 | L118: 3.61 | M118: 2.473353859 | N118: 223.3 | O118: 145.9556621
A119: 2013-10-01 | B119: =AVERAGE('$ by Week'!B512:B515) -> 3.32 | C119: 2.285924092 | D119: =AVERAGE('$ by Week'!C512:C515) -> 3.3975 | E119: 2.339285272 | F119: 222.2 | G119: 145.2366687 | J119: 3.32 | K119: 2.285924092 | L119: 3.3975 | M119: 2.339285272 | N119: 222.2 | O119: 145.2366687
A120: 2013-11-01 | B120: =AVERAGE('$ by Week'!B516:B519) -> 3.1625 | C120: 2.182391276 | D120: =AVERAGE('$ by Week'!C516:C519) -> 3.1925 | E120: 2.203093802 | F120: 221.7 | G120: 144.9098535 | J120: 3.1625 | K120: 2.182391276 | L120: 3.1925 | M120: 2.203093802 | N120: 221.7 | O120: 144.9098535
A121: 2013-12-01 | B121: =AVERAGE('$ by Week'!B520:B524) -> 3.128 | C121: 2.163462628 | D121: =AVERAGE('$ by Week'!C520:C524) -> 3.152 | E121: 2.180062086 | F121: 221.2 | G121: 144.5830383 | J121: 3.128 | K121: 2.163462628 | L121: 3.152 | M121: 2.180062086 | N121: 221.2 | O121: 144.5830383
A122: 2014-01-01 | B122: =AVERAGE('$ by Week'!B525:B528) -> 3.255 | C122: 2.241169554 | D122: =AVERAGE('$ by Week'!C525:C528) -> 3.29 | E122: 2.265268152 | F122: 222.2 | G122: 145.2366687 | J122: 3.255 | K122: 2.241169554 | L122: 3.29 | M122: 2.265268152 | N122: 222.2 | O122: 145.2366687
A123: 2014-02-01 | B123: =AVERAGE('$ by Week'!B529:B532) -> 3.3525 | C123: 2.294875 | D123: =AVERAGE('$ by Week'!C529:C532) -> 3.3925 | E123: 2.322256059 | F123: 223.5 | G123: 146.0863881 | J123: 3.3525 | K123: 2.294875 | L123: 3.3925 | M123: 2.322256059 | N123: 223.5 | O123: 146.0863881
A124: 2014-03-01 | B124: =AVERAGE('$ by Week'!B533:B537) -> 3.608 | C124: 2.447866667 | D124: =AVERAGE('$ by Week'!C533:C537) -> 3.622 | E124: 2.457365041 | F124: 225.5 | G124: 147.3936489 | J124: 3.608 | K124: 2.447866667 | L124: 3.622 | M124: 2.457365041 | N124: 225.5 | O124: 147.3936489
A125: 2014-04-01 | B125: =AVERAGE('$ by Week'!B538:B541) -> 3.665 | C125: 2.478843759 | D125: =AVERAGE('$ by Week'!C538:C541) -> 3.65 | E125: 2.468698423 | F125: 226.2 | G125: 147.8511902 | J125: 3.665 | K125: 2.478843759 | L125: 3.65 | M125: 2.468698423 | N125: 226.2 | O125: 147.8511902
A126: 2014-05-01 | B126: =AVERAGE('$ by Week'!B542:B545) -> 3.61 | C126: 2.441644194 | D126: =AVERAGE('$ by Week'!C542:C545) -> 3.62 | E126: 2.448407751 | F126: 226.2 | G126: 147.8511902 | J126: 3.61 | K126: 2.441644194 | L126: 3.62 | M126: 2.448407751 | N126: 226.2 | O126: 147.8511902
A127: 2014-06-01 | B127: =AVERAGE('$ by Week'!B546:B549) -> 3.7225 | C127: 2.502247272 | D127: =AVERAGE('$ by Week'!C546:C549) -> 3.695 | E127: 2.4837619 | F127: 227.6 | G127: 148.7662727 | J127: 3.7225 | K127: 2.502247272 | L127: 3.695 | M127: 2.4837619 | N127: 227.6 | O127: 148.7662727
A128: 2014-07-01 | B128: =AVERAGE('$ by Week'!B550:B554) -> 3.6 | C128: 2.426299559 | D128: =AVERAGE('$ by Week'!C550:C554) -> 3.674 | E128: 2.476173495 | F128: 227 | G128: 148.3740944 | J128: 3.6 | K128: 2.426299559 | L128: 3.674 | M128: 2.476173495 | N128: 227 | O128: 148.3740944
A129: 2014-08-01 | B129: =AVERAGE('$ by Week'!B555:B558) -> 3.4625 | C129: 2.337747775 | D129: =AVERAGE('$ by Week'!C555:C558) -> 3.5225 | E129: 2.378257484 | F129: 226.6 | G129: 148.1126423 | J129: 3.4625 | K129: 2.337747775 | L129: 3.5225 | M129: 2.378257484 | N129: 226.6 | O129: 148.1126423
A130: 2014-09-01 | B130: =AVERAGE('$ by Week'!B559:B563) -> 3.404 | C130: 2.295212135 | D130: =AVERAGE('$ by Week'!C559:C563) -> 3.45 | E130: 2.326228515 | F130: 226.9 | G130: 148.3087314 | J130: 3.404 | K130: 2.295212135 | L130: 3.45 | M130: 2.326228515 | N130: 226.9 | O130: 148.3087314
A131: 2014-10-01 | B131: =AVERAGE('$ by Week'!B564:B567) -> 3.165 | C131: 2.144458038 | D131: =AVERAGE('$ by Week'!C564:C567) -> 3.195 | E131: 2.164784655 | F131: 225.8 | G131: 147.589738 | J131: 3.165 | K131: 2.144458038 | L131: 3.195 | M131: 2.164784655 | N131: 225.8 | O131: 147.589738
A132: 2014-11-01 | B132: =AVERAGE('$ by Week'!B568:B571) -> 2.915 | C132: 1.983855464 | D132: =AVERAGE('$ by Week'!C568:C571) -> 2.98 | E132: 2.028092378 | F132: 224.8 | G132: 146.9361076 | J132: 2.915 | K132: 1.983855464 | L132: 2.98 | M132: 2.028092378 | N132: 224.8 | O132: 146.9361076
A133: 2014-12-01 | B133: =AVERAGE('$ by Week'!B572:B576) -> 2.458 | C133: 1.687852409 | D133: =AVERAGE('$ by Week'!C572:C576) -> 2.556 | E133: 1.755146768 | F133: 222.8 | G133: 145.6288469 | J133: 2.458 | K133: 1.687852409 | L133: 2.556 | M133: 1.755146768 | N133: 222.8 | O133: 145.6288469
A134: 2015-01-01 | B134: =AVERAGE('$ by Week'!B577:B580) -> 1.99 | C134: 1.374507524 | D134: =AVERAGE('$ by Week'!C577:C580) -> 2.07 | E134: 1.429764108 | F134: 221.5 | G134: 144.7791274 | J134: 1.99 | K134: 1.374507524 | L134: 2.07 | M134: 1.429764108 | N134: 221.5 | O134: 144.7791274
A135: 2015-02-01 | B135: =AVERAGE('$ by Week'!B578:B581) -> 2.0125
A136: 2015-03-01
A137: 2015-04-01
A138: 2015-05-01
A139: 2015-06-01
A140: 2015-07-01
A141: 2015-08-01
A142: 2015-09-01
A143: 2015-10-01
A144: 2015-11-01
A145: 2015-12-01
A146: 2016-01-01
A147: 2016-02-01
A148: 2016-03-01
A149: 2016-04-01
A150: 2016-05-01
A151: 2016-06-01

Sheet Month-Month
A1: EC Real | B1: jan | C1: feb | D1: mar | E1: apr | F1: may | G1: jun | H1: jul | I1: aug | J1: sep | K1: oct | L1: nov | M1: dec | N1: ytd_avg | O1: Column1
A2: 2004 | B2: 1.38 | C2: 1.45 | D2: 1.53 | E2: 1.58 | F2: 1.73 | G2: 1.71 | H2: 1.65 | I2: 1.67 | J2: 1.63 | K2: 1.73 | L2: 1.72 | M2: 1.58 | N2: =AVERAGE(B2:M2) -> 1.613333333 | O2: =AVERAGE(B2:M2) -> 1.613333333
A3: 2005 | B3: 1.59 | C3: 1.65 | D3: 1.79 | E3: 1.87 | F3: 1.82 | G3: 1.83 | H3: 1.93 | I3: 2.05 | J3: 2.28 | K3: 2.17 | L3: 1.89 | M3: 1.82 | N3: 1.890833333 | O3: 1.890833333
A4: 2006 | B4: 1.89 | C4: 1.9 | D4: 1.98 | E4: 2.21 | F4: 2.33 | G4: 2.33 | H4: 2.4 | I4: 2.43 | J4: 2.07 | K4: 1.86 | L4: 1.87 | M4: 1.91 | N4: 2.098333333 | O4: 2.098333333
A5: 2007 | B5: 1.79 | C5: 1.8 | D5: 2.03 | E5: 2.2 | F5: 2.51 | G5: 2.43 | H5: 2.44 | I5: 2.34 | J5: 2.39 | K5: 2.26 | L5: 2.42 | M5: 2.35 | N5: 2.246666667 | O5: 2.246666667
A6: 2008 | B6: 2.38 | C6: 2.37 | D6: 2.44 | E6: 2.59 | F6: 2.8 | G6: 2.92 | H6: 2.92 | I6: 2.78 | J6: 2.75 | K6: 2.181415407 | L6: 1.58 | M6: 1.4 | N6: 2.425951284 | O6: 2.425951284
A7: 2009 | B7: 1.46 | C7: 1.51 | D7: 1.56 | E7: 1.6 | F7: 1.76 | G7: 2.04 | H7: 1.91 | I7: 1.97 | J7: 1.92 | K7: 1.93 | L7: 2.04 | M7: 1.99 | N7: 1.8075 | O7: 1.8075
A8: 2010 | B8: 2.05 | C8: 1.99 | D8: 2.11 | E8: 2.16 | F8: 2.17 | G8: 2.05 | H8: 2.06 | I8: 2.03 | J8: 2.08 | K8: 2.08 | L8: 2.17 | M8: 2.23 | N8: =AVERAGE(B8:M8) -> 2.098333333 | O8: 2.098333333
A9: 2011 | B9: 2.34 | C9: 2.4 | D9: 2.61 | E9: 2.79 | F9: 2.82 | G9: 2.65 | H9: 2.68 | I9: 2.67 | J9: 2.61 | K9: 2.52 | L9: 2.43 | M9: 2.38 | N9: =AVERAGE(B9:M9) -> 2.575 | O9: 2.575
A10: 2012 | B10: 2.41 | C10: 2.51 | D10: 2.68 | E10: 2.69 | F10: 2.6 | G10: 2.54 | H10: 2.59 | I10: 2.7 | J10: 2.74 | K10: 2.55 | L10: 2.39 | M10: 2.29 | N10: =AVERAGE(B10:M10) -> 2.5575 | O10: =AVERAGE(B10:M10) -> 2.5575
A11: 2013 | B11: 2.28 | C11: 2.58 | D11: 2.57 | E11: 2.48 | F11: 2.73 | G11: 2.5 | H11: 2.52 | I11: 2.49 | J11: 2.47 | K11: 2.34 | L11: 2.2 | M11: 2.18 | N11: =AVERAGE(B11:M11) -> 2.445 | O11: =AVERAGE(B11:M11) -> 2.445
A12: 2014 | B12: 2.27 | C12: 2.32 | D12: 2.46 | E12: 2.47 | F12: 2.45 | G12: 2.48 | H12: 2.48 | I12: 2.38 | J12: 2.33 | K12: 2.16 | L12: 2.03 | M12: 1.76 | N12: =AVERAGE(B12:M12) -> 2.299166667 | O12: =AVERAGE(B12:M12) -> 2.299166667
A13: 2015 | B13: 1.43 | N13: =AVERAGE(B13:B13) -> 1.43 | O13: =AVERAGE(B13:M13) -> 1.43
A14: 2005 | B14: jan-dec | C14: feb-jan | D14: mar-feb | E14: apr-mar | F14: may-apr | G14: jun-may | H14: jul-jun | I14: aug-jul | J14: sep-aug | K14: oct-sep | L14: nov-oct | M14: dec-nov
A15: Absolute Change | B15: =B3-M2 -> 0.01 | C15: =C3-B3 -> 0.06 | D15: 0.14 | E15: 0.08 | F15: -0.05 | G15: 0.01 | H15: 0.1 | I15: 0.12 | J15: 0.23 | K15: -0.11 | L15: -0.28 | M15: -0.07
A16: % Change | B16: =(B15/M2) -> 0.006329113924 | C16: =(C15/B3) -> 0.03773584906 | D16: =(D15/C3) -> 0.08484848485 | E16: =(E15/D3) -> 0.04469273743 | F16: =(F15/E3) -> -0.02673796791 | G16: 0.005494505495 | H16: 0.05464480874 | I16: 0.0621761658 | J16: 0.112195122 | K16: -0.04824561404 | L16: -0.1290322581 | M16: -0.03703703704
A17: 2004-2005 | B17: jan | C17: feb | D17: mar | E17: apr | F17: may | G17: jun | H17: jul | I17: aug | J17: sep | K17: oct | L17: nov | M17: dec | N17: ytd_avg
A18: Change year to year | B18: =B3-B2 -> 0.21 | C18: 0.2 | D18: 0.26 | E18: 0.29 | F18: 0.09 | G18: 0.12 | H18: 0.28 | I18: 0.38 | J18: 0.65 | K18: 0.44 | L18: 0.17 | M18: 0.24 | N18: =O3-O2 -> 0.2775
A19: % Change year to year | B19: =(B18/B2) -> 0.152173913 | C19: =(C18/C2) -> 0.1379310345 | D19: =(D18/D2) -> 0.1699346405 | E19: 0.1835443038 | F19: 0.05202312139 | G19: 0.0701754386 | H19: 0.1696969697 | I19: 0.2275449102 | J19: 0.3987730061 | K19: 0.2543352601 | L19: 0.0988372093 | M19: 0.1518987342 | N19: =(N18/O2) -> 0.1720041322
A21: 2005 | B21: jan-dec | C21: feb-jan | D21: mar-feb | E21: apr-mar | F21: may-apr | G21: jun-may | H21: jul-jun | I21: aug-jul | J21: sep-aug | K21: oct-sep | L21: nov-oct | M21: dec-nov
A22: Absolute Change | B22: =B4-M3 -> 0.07 | C22: =C4-B4 -> 0.01 | D22: 0.08 | E22: 0.23 | F22: 0.12 | G22: 0 | H22: 0.07 | I22: 0.03 | J22: -0.36 | K22: -0.21 | L22: 0.01 | M22: 0.04
A23: % Change | B23: =(B22/M3)*100 -> 3.846153846 | C23: =(C22/B4)*100 -> 0.5291005291 | D23: 4.210526316 | E23: 11.61616162 | F23: 5.429864253 | G23: 0 | H23: 3.004291845 | I23: 1.25 | J23: -14.81481481 | K23: -10.14492754 | L23: 0.5376344086 | M23: 2.139037433
A24: 2004-2005 | B24: jan | C24: feb | D24: mar | E24: apr | F24: may | G24: jun | H24: jul | I24: aug | J24: sep | K24: oct | L24: nov | M24: dec | N24: ytd_avg
A25: Change year to year | B25: =B4-B3 -> 0.3 | C25: 0.25 | D25: 0.19 | E25: 0.34 | F25: 0.51 | G25: 0.5 | H25: 0.47 | I25: 0.38 | J25: -0.21 | K25: -0.31 | L25: -0.02 | M25: 0.09 | N25: =O4-O3 -> 0.2075
A26: % Change year to year | B26: =(B25/B3)*100 -> 18.86792453 | C26: 15.15151515 | D26: 10.61452514 | E26: 18.18181818 | F26: 28.02197802 | G26: 27.32240437 | H26: 24.35233161 | I26: 18.53658537 | J26: -9.210526316 | K26: -14.28571429 | L26: -1.058201058 | M26: 4.945054945 | N26: =(N25/O3)*100 -> 10.97399736
A28: 2005 | B28: jan-dec | C28: feb-jan | D28: mar-feb | E28: apr-mar | F28: may-apr | G28: jun-may | H28: jul-jun | I28: aug-jul | J28: sep-aug | K28: oct-sep | L28: nov-oct | M28: dec-nov
A29: Absolute Change | B29: =B5-M4 -> -0.12 | C29: =C5-B5 -> 0.01 | D29: 0.23 | E29: 0.17 | F29: 0.31 | G29: -0.08 | H29: 0.01 | I29: -0.1 | J29: 0.05 | K29: -0.13 | L29: 0.16 | M29: -0.07
A30: % Change | B30: =(B29/M4)*100 -> -6.282722513 | C30: =(C29/B5)*100 -> 0.5586592179 | D30: 12.77777778 | E30: 8.374384236 | F30: 14.09090909 | G30: -3.187250996 | H30: 0.4115226337 | I30: -4.098360656 | J30: 2.136752137 | K30: -5.439330544 | L30: 7.079646018 | M30: -2.892561983
A31: 2004-2005 | B31: jan | C31: feb | D31: mar | E31: apr | F31: may | G31: jun | H31: jul | I31: aug | J31: sep | K31: oct | L31: nov | M31: dec | N31: ytd_avg
A32: Change year to year | B32: =B5-B4 -> -0.1 | C32: -0.1 | D32: 0.05 | E32: -0.01 | F32: 0.18 | G32: 0.1 | H32: 0.04 | I32: -0.09 | J32: 0.32 | K32: 0.4 | L32: 0.55 | M32: 0.44 | N32: =O5-O4 -> 0.1483333333
A33: % Change year to year | B33: =(B32/B4)*100 -> -5.291005291 | C33: -5.263157895 | D33: 2.525252525 | E33: -0.4524886878 | F33: 7.725321888 | G33: 4.291845494 | H33: 1.666666667 | I33: -3.703703704 | J33: 15.4589372 | K33: 21.50537634 | L33: 29.41176471 | M33: 23.03664921 | N33: =(N32/O4)*100 -> 7.069102462
A35: 2005 | B35: jan-dec | C35: feb-jan | D35: mar-feb | E35: apr-mar | F35: may-apr | G35: jun-may | H35: jul-jun | I35: aug-jul | J35: sep-aug | K35: oct-sep | L35: nov-oct | M35: dec-nov
A36: Absolute Change | B36: =B6-M5 -> 0.03 | C36: =C6-B6 -> -0.01 | D36: 0.07 | E36: 0.15 | F36: 0.21 | G36: 0.12 | H36: 0 | I36: -0.14 | J36: -0.03 | K36: -0.5685845925 | L36: -0.6014154075 | M36: -0.18
A37: % Change | B37: =(B36/M5)*100 -> 1.276595745 | C37: =(C36/B6)*100 -> -0.4201680672 | D37: 2.953586498 | E37: 6.147540984 | F37: 8.108108108 | G37: 4.285714286 | H37: 0 | I37: -4.794520548 | J37: -1.079136691 | K37: -20.67580336 | L37: -27.56996239 | M37: -11.39240506
A38: 2004-2005 | B38: jan | C38: feb | D38: mar | E38: apr | F38: may | G38: jun | H38: jul | I38: aug | J38: sep | K38: oct | L38: nov | M38: dec | N38: ytd_avg
A39: Change year to year | B39: =B6-B5 -> 0.59 | C39: 0.57 | D39: 0.41 | E39: 0.39 | F39: 0.29 | G39: 0.49 | H39: 0.48 | I39: 0.44 | J39: 0.36 | K39: -0.07858459252 | L39: -0.84 | M39: -0.95 | N39: =O6-O5 -> 0.1792846173
A40: % Change year to year | B40: =(B39/B5)*100 -> 32.96089385 | C40: 31.66666667 | D40: 20.19704433 | E40: 17.72727273 | F40: 11.55378486 | G40: 20.16460905 | H40: 19.67213115 | I40: 18.8034188 | J40: 15.06276151 | K40: -3.477194359 | L40: -34.7107438 | M40: -40.42553191 | N40: =(N39/O5)*100 -> 7.980027476
A42: 2005 | B42: jan-dec | C42: feb-jan | D42: mar-feb | E42: apr-mar | F42: may-apr | G42: jun-may | H42: jul-jun | I42: aug-jul | J42: sep-aug | K42: oct-sep | L42: nov-oct | M42: dec-nov
A43: Absolute Change | B43: =B7-M6 -> 0.06 | C43: =C7-B7 -> 0.05 | D43: 0.05 | E43: 0.04 | F43: 0.16 | G43: 0.28 | H43: -0.13 | I43: 0.06 | J43: -0.05 | K43: 0.01 | L43: 0.11 | M43: -0.05
A44: % Change | B44: =(B43/M6)*100 -> 4.285714286 | C44: =(C43/B7)*100 -> 3.424657534 | D44: 3.311258278 | E44: 2.564102564 | F44: 10 | G44: 15.90909091 | H44: -6.37254902 | I44: 3.141361257 | J44: -2.538071066 | K44: 0.5208333333 | L44: 5.699481865 | M44: -2.450980392
A45: 2004-2005 | B45: jan | C45: feb | D45: mar | E45: apr | F45: may | G45: jun | H45: jul | I45: aug | J45: sep | K45: oct | L45: nov | M45: dec | N45: ytd_avg
A46: Change year to year | B46: =B7-B6 -> -0.92 | C46: -0.86 | D46: -0.88 | E46: -0.99 | F46: -1.04 | G46: -0.88 | H46: -1.01 | I46: -0.81 | J46: -0.83 | K46: -0.2514154075 | L46: 0.46 | M46: 0.59 | N46: =O7-O6 -> -0.618451284
A47: % Change year to year | B47: =(B46/B6)*100 -> -38.65546218 | C47: -36.28691983 | D47: -36.06557377 | E47: -38.22393822 | F47: -37.14285714 | G47: -30.1369863 | H47: -34.5890411 | I47: -29.13669065 | J47: -30.18181818 | K47: -11.52533381 | L47: 29.11392405 | M47: 42.14285714 | N47: =(N46/O6)*100 -> -25.49314523
A49: 2005 | B49: jan-dec | C49: feb-jan | D49: mar-feb | E49: apr-mar | F49: may-apr | G49: jun-may | H49: jul-jun | I49: aug-jul | J49: sep-aug | K49: oct-sep | L49: nov-oct | M49: dec-nov
A50: Absolute Change | B50: =B8-M7 -> 0.06 | C50: =C8-B8 -> -0.06 | D50: 0.12 | E50: 0.05 | F50: 0.01 | G50: -0.12 | H50: 0.01 | I50: -0.03 | J50: 0.05 | K50: 0 | L50: 0.09 | M50: 0.06
A51: % Change | B51: =(B50/M7)*100 -> 3.015075377 | C51: =(C50/B8)*100 -> -2.926829268 | D51: 6.030150754 | E51: 2.369668246 | F51: 0.462962963 | G51: -5.529953917 | H51: 0.487804878 | I51: -1.45631068 | J51: 2.463054187 | K51: 0 | L51: 4.326923077 | M51: 2.764976959
A52: 2004-2005 | B52: jan | C52: feb | D52: mar | E52: apr | F52: may | G52: jun | H52: jul | I52: aug | J52: sep | K52: oct | L52: nov | M52: dec | N52: ytd_avg
A53: Change year to year | B53: =B8-B7 -> 0.59 | C53: 0.48 | D53: 0.55 | E53: 0.56 | F53: 0.41 | G53: 0.01 | H53: 0.15 | I53: 0.06 | J53: 0.16 | K53: 0.15 | L53: 0.13 | M53: 0.24 | N53: =O8-O7 -> 0.2908333333
A54: % Change year to year | B54: =(B53/B7)*100 -> 40.4109589 | C54: 31.78807947 | D54: 35.25641026 | E54: 35 | F54: 23.29545455 | G54: 0.4901960784 | H54: 7.853403141 | I54: 3.045685279 | J54: 8.333333333 | K54: 7.772020725 | L54: 6.37254902 | M54: 12.06030151 | N54: =(N53/O7)*100 -> 16.09036422
A56: 2005 | B56: jan-dec | C56: feb-jan | D56: mar-feb | E56: apr-mar | F56: may-apr | G56: jun-may | H56: jul-jun | I56: aug-jul | J56: sep-aug | K56: oct-sep | L56: nov-oct | M56: dec-nov
A57: Absolute Change | B57: =B9-M8 -> 0.11 | C57: =C9-B9 -> 0.06 | D57: 0.21 | E57: 0.18 | F57: 0.03 | G57: -0.17 | H57: 0.03 | I57: -0.01 | J57: -0.06 | K57: -0.09 | L57: -0.09 | M57: -0.05
A58: % Change | B58: =(B57/ M8)*100 -> 4.932735426 | C58: =(C57/B9)*100 -> 2.564102564 | D58: 8.75 | E58: 6.896551724 | F58: 1.075268817 | G58: -6.028368794 | H58: 1.132075472 | I58: -0.3731343284 | J58: -2.247191011 | K58: -3.448275862 | L58: -3.571428571 | M58: -2.057613169
A59: 2004-2005 | B59: jan | C59: feb | D59: mar | E59: apr | F59: may | G59: jun | H59: jul | I59: aug | J59: sep | K59: oct | L59: nov | M59: dec | N59: ytd_avg
A60: Change year to year | B60: =B9-B8 -> 0.29 | C60: 0.41 | D60: 0.5 | E60: 0.63 | F60: 0.65 | G60: 0.6 | H60: 0.62 | I60: 0.64 | J60: 0.53 | K60: 0.44 | L60: 0.26 | M60: 0.15 | N60: =O9-O8 -> 0.4766666667
A61: % Change year to year | B61: =(B60/B8)*100 -> 14.14634146 | C61: 20.60301508 | D61: 23.69668246 | E61: 29.16666667 | F61: 29.95391705 | G61: 29.26829268 | H61: 30.09708738 | I61: 31.5270936 | J61: 25.48076923 | K61: 21.15384615 | L61: 11.98156682 | M61: 6.726457399 | N61: =(N60/O8)*100 -> 22.71644162
A63: 2005 | B63: jan-dec | C63: feb-jan | D63: mar-feb | E63: apr-mar | F63: may-apr | G63: jun-may | H63: jul-jun | I63: aug-jul | J63: sep-aug | K63: oct-sep | L63: nov-oct | M63: dec-nov
A64: Absolute Change | B64: =B10-M9 -> 0.03 | C64: =C10-B10 -> 0.1 | D64: 0.17 | E64: 0.01 | F64: -0.09 | G64: -0.06 | H64: 0.05 | I64: 0.11 | J64: 0.04 | K64: -0.19 | L64: -0.16 | M64: -0.1
A65: % Change | B65: =(B64/M9)*100 -> 1.260504202 | C65: =(C64/B10)*100 -> 4.149377593 | D65: 6.772908367 | E65: 0.3731343284 | F65: -3.345724907 | G65: -2.307692308 | H65: 1.968503937 | I65: 4.247104247 | J65: 1.481481481 | K65: -6.934306569 | L65: -6.274509804 | M65: -4.184100418
A66: 2004-2005 | B66: jan | C66: feb | D66: mar | E66: apr | F66: may | G66: jun | H66: jul | I66: aug | J66: sep | K66: oct | L66: nov | M66: dec | N66: ytd_avg
A67: Change year to year | B67: =B10-B9 -> 0.07 | C67: 0.11 | D67: 0.07 | E67: -0.1 | F67: -0.22 | G67: -0.11 | H67: -0.09 | I67: 0.03 | J67: 0.13 | K67: 0.03 | L67: -0.04 | M67: -0.09 | N67: =O10-O9 -> -0.0175
A68: % Change year to year | B68: =(B67/B9)*100 -> 2.991452991 | C68: 4.583333333 | D68: 2.681992337 | E68: -3.584229391 | F68: -7.80141844 | G68: -4.150943396 | H68: -3.358208955 | I68: 1.123595506 | J68: 4.980842912 | K68: 1.19047619 | L68: -1.646090535 | M68: -3.781512605 | N68: =(N67/O9)*100 -> -0.6796116505
A70: 2005 | B70: jan-dec | C70: feb-jan | D70: mar-feb | E70: apr-mar | F70: may-apr | G70: jun-may | H70: jul-jun | I70: aug-jul | J70: sep-aug | K70: oct-sep | L70: nov-oct | M70: dec-nov
A71: Absolute Change | B71: =B11-M10 -> -0.01 | C71: =C11-B11 -> 0.3 | D71: -0.01 | E71: -0.09 | F71: 0.25 | G71: -0.23 | H71: 0.02 | I71: -0.03 | J71: -0.02 | K71: -0.13 | L71: -0.14 | M71: -0.02
A72: % Change | B72: =(B71/M10)*100 -> -0.4366812227 | C72: =(C71/B11)*100 -> 13.15789474 | D72: -0.3875968992 | E72: -3.501945525 | F72: 10.08064516 | G72: -8.424908425 | H72: 0.8 | I72: -1.19047619 | J72: -0.8032128514 | K72: -5.263157895 | L72: -5.982905983 | M72: -0.9090909091
A73: 2004-2005 | B73: jan | C73: feb | D73: mar | E73: apr | F73: may | G73: jun | H73: jul | I73: aug | J73: sep | K73: oct | L73: nov | M73: dec | N73: ytd_avg
A74: Change year to year | B74: =B11-B10 -> -0.13 | C74: 0.07 | D74: -0.11 | E74: -0.21 | F74: 0.13 | G74: -0.04 | H74: -0.07 | I74: -0.21 | J74: -0.27 | K74: -0.21 | L74: -0.19 | M74: -0.11 | N74: -0.1125
A75: % Change year to year | B75: =(B74/B10)*100 -> -5.394190871 | C75: 2.788844622 | D75: -4.104477612 | E75: -7.80669145 | F75: 5 | G75: -1.57480315 | H75: -2.702702703 | I75: -7.777777778 | J75: -9.854014599 | K75: -8.235294118 | L75: -7.949790795 | M75: -4.80349345 | N75: -4.398826979
A77: 2005 | B77: jan-dec | C77: feb-jan | D77: mar-feb | E77: apr-mar | F77: may-apr | G77: jun-may | H77: jul-jun | I77: aug-jul | J77: sep-aug | K77: oct-sep | L77: nov-oct | M77: dec-nov
A78: Absolute Change | B78: =B12-M11 -> 0.09 | C78: =C12-B12 -> 0.05 | D78: 0.14 | E78: 0.01 | F78: -0.02 | G78: 0.03 | H78: 0 | I78: -0.1 | J78: -0.05 | K78: -0.17 | L78: -0.13 | M78: -0.27
A79: % Change | B79: =(B78/M11)*100 -> 4.128440367 | C79: =(C78/B12)*100 -> 2.202643172 | D79: 6.034482759 | E79: 0.406504065 | F79: -0.8097165992 | G79: 1.224489796 | H79: 0 | I79: -4.032258065 | J79: -2.100840336 | K79: -7.296137339 | L79: -6.018518519 | M79: -13.30049261
A80: 2004-2005 | B80: jan | C80: feb | D80: mar | E80: apr | F80: may | G80: jun | H80: jul | I80: aug | J80: sep | K80: oct | L80: nov | M80: dec | N80: ytd_avg
A81: Change year to year | B81: =B12-B11 -> -0.01 | C81: -0.26 | D81: -0.11 | E81: -0.01 | F81: -0.28 | G81: -0.02 | H81: -0.04 | I81: -0.11 | J81: -0.14 | K81: -0.18 | L81: -0.17 | M81: -0.42 | N81: =O12-O11 -> -0.1458333333
A82: % Change year to year | B82: =(B81/B11)*100 -> -0.4385964912 | C82: -10.07751938 | D82: -4.280155642 | E82: -0.4032258065 | F82: -10.25641026 | G82: -0.8 | H82: -1.587301587 | I82: -4.417670683 | J82: -5.668016194 | K82: -7.692307692 | L82: -7.727272727 | M82: -19.26605505 | N82: =(N81/O11)*100 -> -5.964553511
A84: 2005 | B84: jan-dec | C84: feb-jan | D84: mar-feb | E84: apr-mar | F84: may-apr | G84: jun-may | H84: jul-jun | I84: aug-jul | J84: sep-aug | K84: oct-sep | L84: nov-oct | M84: dec-nov
A85: Absolute Change | B85: =B13-M12 -> -0.33
A86: % Change | B86: =(B85/M12)*100 -> -18.75
A87: 2004-2005 | B87: jan | C87: feb | D87: mar | E87: apr | F87: may | G87: jun | H87: jul | I87: aug | J87: sep | K87: oct | L87: nov | M87: dec | N87: ytd_avg
A88: Change year to year | B88: =B13-B12 -> -0.84 | N88: =N13-N12 -> -0.8691666667
A89: % Change year to year | B89: =(B88/B12)*100 -> -37.00440529 | N89: =(N88/N12)*100 -> -37.80355201
A91: WI Real | B91: jan | C91: feb | D91: mar | E91: apr | F91: may | G91: jun | H91: jul | I91: aug | J91: sep | K91: oct | L91: nov | M91: dec | N91: ytd_avg | O91: Column1
A92: 2004 | B92: 1.4 | C92: 1.47 | D92: 1.51 | E92: 1.57 | F92: 1.73 | G92: 1.73 | H92: 1.64 | I92: 1.66 | J92: 1.64 | K92: 1.74 | L92: 1.71 | M92: 1.59 | N92: =AVERAGE(B92:M92) -> 1.615833333 | O92: =AVERAGE(B92:M92) -> 1.615833333
A93: 2005 | B93: 1.57 | C93: 1.64 | D93: 1.75 | E93: 1.86 | F93: 1.81 | G93: 1.81 | H93: 1.91 | I93: 2.06 | J93: 2.25 | K93: 2.2 | L93: 1.88 | M93: 1.8 | N93: =AVERAGE(B93:L93) -> 1.885454545 | O93: 1.878333333
A94: 2006 | B94: 1.9 | C94: 1.88 | D94: 1.97 | E94: 2.21 | F94: 2.3 | G94: 2.31 | H94: 2.42 | I94: 2.4 | J94: 2.02 | K94: 1.8 | L94: 1.83 | M94: 1.86 | N94: =AVERAGE(B94:M94) -> 2.075 | O94: 2.075
A95: 2007 | B95: 1.75 | C95: 1.79 | D95: 1.98 | E95: 2.18 | F95: 2.52 | G95: 2.41 | H95: 2.42 | I95: 2.27 | J95: 2.32 | K95: 2.19 | L95: 2.37 | M95: 2.28 | N95: 2.206666667 | O95: 2.206666667
A96: 2008 | B96: 2.32 | C96: 2.35 | D96: 2.43 | E96: 2.58 | F96: 2.82 | G96: 2.92 | H96: 2.92 | I96: 2.77 | J96: 2.76 | K96: 2.141685799 | L96: 1.54 | M96: 1.32 | N96: 2.405973817 | O96: 2.405973817
A97: 2009 | B97: 1.43 | C97: 1.48 | D97: 1.54 | E97: 1.58 | F97: 1.77 | G97: 2.05 | H97: 1.87 | I97: 1.95 | J97: 1.86 | K97: 1.9 | L97: 1.94 | M97: 1.93 | N97: 1.775 | O97: 1.775
A98: 2010 | B98: 2.02 | C98: 1.93 | D98: 2.06 | E98: 2.14 | F98: 2.06 | G98: 1.99 | H98: 2 | I98: 1.98 | J98: 2.01 | K98: 2.01 | L98: 2.12 | M98: 2.19 | N98: 2.0425 | O98: 2.0425
A99: 2011 | B99: 2.27 | C99: 2.36 | D99: 2.56 | E99: 2.77 | F99: 2.84 | G99: 2.62 | H99: 2.62 | I99: 2.6 | J99: 2.53 | K99: 2.4 | L99: 2.35 | M99: 2.3 | N99: 2.518333333 | O99: 2.518333333
A100: 2012 | B100: 2.37 | C100: 2.46 | D100: 2.72 | E100: 2.7 | F100: 2.59 | G100: 2.49 | H100: 2.45 | I100: 2.71 | J100: 2.7 | K100: 2.5 | L100: 2.38 | M100: 2.27 | N100: =AVERAGE(B100:M100) -> 2.528333333 | O100: =AVERAGE(B100:M100) -> 2.528333333
A101: 2013 | B101: 2.27 | C101: 2.54 | D101: 2.54 | E101: 2.5 | F101: 2.66 | G101: 2.48 | H101: 2.46 | I101: 2.46 | J101: 2.42 | K101: 2.29 | L101: 2.18 | M101: 2.16 | N101: =AVERAGE(B101:M101) -> 2.413333333 | O101: =AVERAGE(B101:M101) -> 2.413333333
A102: 2014 | B102: 2.24 | C102: 2.29 | D102: 2.45 | E102: 2.48 | F102: 2.44 | G102: 2.5 | H102: 2.43 | I102: 2.34 | J102: 2.3 | K102: 2.14 | L102: 1.98 | M102: 1.69 | N102: =AVERAGE(B102:M102) -> 2.273333333 | O102: =AVERAGE(B102:M102) -> 2.273333333
A103: 2015 | B103: 1.37 | N103: =AVERAGE(B103:B103) -> 1.37 | O103: =AVERAGE(B103:M103) -> 1.37
B104: jan-dec | C104: feb-jan | D104: mar-feb | E104: apr-mar | F104: may-apr | G104: jun-may | H104: jul-jun | I104: aug-jul | J104: sep-aug | K104: oct-sep | L104: nov-oct | M104: dec-nov
A105: change_05 | B105: =B93-M92 -> -0.02 | C105: =C93-B93 -> 0.07 | D105: 0.11 | E105: 0.11 | F105: -0.05 | G105: 0 | H105: 0.1 | I105: 0.15 | J105: 0.19 | K105: -0.05 | L105: -0.32 | M105: -0.08
A106: %change_05 | B106: =(B105/M92)*100 -> -1.257861635 | C106: =(C105/B93)*100 -> 4.458598726 | D106: 6.707317073 | E106: 6.285714286 | F106: -2.688172043 | G106: 0 | H106: 5.524861878 | I106: 7.853403141 | J106: 9.223300971 | K106: -2.222222222 | L106: -14.54545455 | M106: -4.255319149
B107: jan | C107: feb | D107: mar | E107: apr | F107: may | G107: jun | H107: jul | I107: aug | J107: sep | K107: oct | L107: nov | M107: dec | N107: ytd_avg
A108: chg_prv_05-04 | B108: =B93-B92 -> 0.17 | C108: 0.17 | D108: 0.24 | E108: 0.29 | F108: 0.08 | G108: 0.08 | H108: =H93-H92 -> 0.27 | I108: 0.4 | J108: 0.61 | K108: 0.46 | L108: 0.17 | M108: 0.21 | N108: =O93-O92 -> 0.2625
A109: %chg_prv_05-04 | B109: =(B108/B92)*100 -> 12.14285714 | C109: 11.56462585 | D109: 15.89403974 | E109: 18.47133758 | F109: 4.624277457 | G109: 4.624277457 | H109: 16.46341463 | I109: 24.09638554 | J109: 37.19512195 | K109: 26.43678161 | L109: 9.941520468 | M109: 13.20754717 | N109: =(N108/O92)*100 -> 16.24548736
B111: jan-dec | C111: feb-jan | D111: mar-feb | E111: apr-mar | F111: may-apr | G111: jun-may | H111: jul-jun | I111: aug-jul | J111: sep-aug | K111: oct-sep | L111: nov-oct | M111: dec-nov
A112: change_06 | B112: =B94-M93 -> 0.1 | C112: =C94-B94 -> -0.02 | D112: 0.09 | E112: 0.24 | F112: 0.09 | G112: 0.01 | H112: 0.11 | I112: -0.02 | J112: -0.38 | K112: -0.22 | L112: =L94-K94 -> 0.03 | M112: =M94-L94 -> 0.03
A113: %change_06 | B113: =(B112/M93)*100 -> 5.555555556 | C113: =(C112/B94)*100 -> -1.052631579 | D113: 4.787234043 | E113: 12.18274112 | F113: 4.07239819 | G113: 0.4347826087 | H113: 4.761904762 | I113: -0.826446281 | J113: -15.83333333 | K113: -10.89108911 | L113: =(L112/K94)*100 -> 1.666666667 | M113: =(M112/L94)*100 -> 1.639344262
B114: jan | C114: feb | D114: mar | E114: apr | F114: may | G114: jun | H114: jul | I114: aug | J114: sep | K114: oct | L114: nov | M114: dec | N114: ytd_avg
A115: chg_prv_06-05 | B115: =B94-B93 -> 0.33 | C115: 0.24 | D115: 0.22 | E115: 0.35 | F115: 0.49 | G115: 0.5 | H115: =H94-H93 -> 0.51 | I115: 0.34 | J115: -0.23 | K115: -0.4 | L115: -0.05 | M115: 0.06 | N115: =O94-O93 -> 0.1966666667
A116: %chg_prv_06-05 | B116: =(B115/B93)*100 -> 21.01910828 | C116: 14.63414634 | D116: 12.57142857 | E116: 18.8172043 | F116: 27.0718232 | G116: 27.62430939 | H116: 26.70157068 | I116: 16.50485437 | J116: -10.22222222 | K116: -18.18181818 | L116: =(L115/L93)*100 -> -2.659574468 | M116: =(M115/M93)*100 -> 3.333333333 | N116: =N115/O93*100 -> 10.47027507
B118: jan-dec | C118: feb-jan | D118: mar-feb | E118: apr-mar | F118: may-apr | G118: jun-may | H118: jul-jun | I118: aug-jul | J118: sep-aug | K118: oct-sep | L118: nov-oct | M118: dec-nov
A119: change_07 | B119: =B95-M94 -> -0.11 | C119: =C95-B95 -> 0.04 | D119: 0.19 | E119: 0.2 | F119: 0.34 | G119: -0.11 | H119: 0.01 | I119: -0.15 | J119: 0.05 | K119: =K95-J95 -> -0.13 | L119: =L95-K95 -> 0.18 | M119: =M95-L95 -> -0.09
A120: %change_07 | B120: =(B119/M94)*100 -> -5.913978495 | C120: =(C119/B95)*100 -> 2.285714286 | D120: 10.61452514 | E120: 10.1010101 | F120: 15.59633028 | G120: -4.365079365 | H120: 0.4149377593 | I120: -6.198347107 | J120: 2.202643172 | K120: =(K119/J95)*100 -> -5.603448276 | L120: =(L119/K95)*100 -> 8.219178082 | M120: =(M119/L95)*100 -> -3.797468354
B121: jan | C121: feb | D121: mar | E121: apr | F121: may | G121: jun | H121: jul | I121: aug | J121: sep | K121: oct | L121: nov | M121: dec | N121: ytd_avg
A122: chg_prv_07-06 | B122: =B95-B94 -> -0.15 | C122: -0.09 | D122: 0.01 | E122: -0.03 | F122: 0.22 | G122: 0.1 | H122: 0 | I122: -0.13 | J122: =J95-J94 -> 0.3 | K122: =K95-K94 -> 0.39 | L122: =L95-L94 -> 0.54 | M122: =M95-M94 -> 0.42 | N122: =O95-O94 -> 0.1316666667
A123: %chg_prv_07-06 | B123: =(B122/B94)*100 -> -7.894736842 | C123: -4.787234043 | D123: 0.5076142132 | E123: -1.357466063 | F123: 9.565217391 | G123: 4.329004329 | H123: 0 | I123: -5.416666667 | J123: 14.85148515 | K123: =(K122/K94)*100 -> 21.66666667 | L123: =(L122/L94)*100 -> 29.50819672 | M123: =(M122/M94)*100 -> 22.58064516 | N123: =(N122/O94)*100 -> 6.345381526
B125: jan-dec | C125: feb-jan | D125: mar-feb | E125: apr-mar | F125: may-apr | G125: jun-may | H125: jul-jun | I125: aug-jul | J125: sep-aug | K125: oct-sep | L125: nov-oct | M125: dec-nov
A126: change_08 | B126: =B96-M95 -> 0.04 | C126: =C96-B96 -> 0.03 | D126: 0.08 | E126: 0.15 | F126: 0.24 | G126: 0.1 | H126: 0 | I126: =I96-H96 -> -0.15 | J126: =J96-I96 -> -0.01 | K126: =K96-J96 -> -0.6183142008 | L126: =L96-K96 -> -0.6016857992 | M126: =M96-L96 -> -0.22
A127: %change_08 | B127: =(B126/M95)*100 -> 1.754385965 | C127: =(C126/B96)*100 -> 1.293103448 | D127: 3.404255319 | E127: 6.172839506 | F127: 9.302325581 | G127: 3.546099291 | H127: 0 | I127: =(I126/H96)*100 -> -5.136986301 | J127: =(J126/I96)*100 -> -0.3610108303 | K127: =(K126/J96)*100 -> -22.40268843 | L127: =(L126/K96)*100 -> -28.09402758 | M127: =(M126/L96)*100 -> -14.28571429
B128: jan | C128: feb | D128: mar | E128: apr | F128: may | G128: jun | H128: jul | I128: aug | J128: sep | K128: oct | L128: nov | M128: dec | N128: ytd_avg
A129: chg_prv_08-07 | B129: =B96-B95 -> 0.57 | C129: 0.56 | D129: 0.45 | E129: 0.4 | F129: 0.3 | G129: 0.51 | H129: =H96-H95 -> 0.5 | I129: 0.5 | J129: 0.44 | K129: -0.04831420079 | L129: -0.83 | M129: -0.96 | N129: =O96-O95 -> 0.1993071499
A130: %chg_prv_08-07 | B130: =(B129/B95)*100 -> 32.57142857 | C130: 31.2849162 | D130: 22.72727273 | E130: 18.34862385 | F130: 11.9047619 | G130: 21.16182573 | H130: =(H129/H95)*100 -> 20.66115702 | I130: 22.02643172 | J130: 18.96551724 | K130: -2.20612789 | L130: -35.02109705 | M130: -42.10526316 | N130: =(N129/O95)*100 -> 9.03204607
B132: jan-dec | C132: feb-jan | D132: mar-feb | E132: apr-mar | F132: may-apr | G132: jun-may | H132: jul-jun | I132: aug-jul | J132: sep-aug | K132: oct-sep | L132: nov-oct | M132: dec-nov
A133: change_09 | B133: =B97-M96 -> 0.11 | C133: =C97-B97 -> 0.05 | D133: 0.06 | E133: 0.04 | F133: 0.19 | G133: 0.28 | H133: -0.18 | I133: 0.08 | J133: -0.09 | K133: 0.04 | L133: 0.04 | M133: -0.01
A134: %change_09 | B134: =(B133/M96)*100 -> 8.333333333 | C134: =(C133/B97)*100 -> 3.496503497 | D134: 4.054054054 | E134: 2.597402597 | F134: 12.02531646 | G134: 15.81920904 | H134: -8.780487805 | I134: 4.278074866 | J134: -4.615384615 | K134: 2.150537634 | L134: 2.105263158 | M134: -0.5154639175
B135: jan | C135: feb | D135: mar | E135: apr | F135: may | G135: jun | H135: jul | I135: aug | J135: sep | K135: oct | L135: nov | M135: dec | N135: ytd_avg
A136: chg_prv_09-08 | B136: =B97-B96 -> -0.89 | C136: -0.87 | D136: -0.89 | E136: -1 | F136: -1.05 | G136: -0.87 | H136: -1.05 | I136: -0.82 | J136: -0.9 | K136: -0.2416857992 | L136: 0.4 | M136: 0.61 | N136: =O97-O96 -> -0.6309738166
A137: %chg_prv_09-08 | B137: =(B136/B96)*100 -> -38.36206897 | C137: -37.0212766 | D137: -36.6255144 | E137: -38.75968992 | F137: -37.23404255 | G137: -29.79452055 | H137: -35.95890411 | I137: -29.60288809 | J137: -32.60869565 | K137: -11.28483923 | L137: 25.97402597 | M137: 46.21212121 | N137: =(N136/O96)*100 -> -26.22529856
B139: jan-dec | C139: feb-jan | D139: mar-feb | E139: apr-mar | F139: may-apr | G139: jun-may | H139: jul-jun | I139: aug-jul | J139: sep-aug | K139: oct-sep | L139: nov-oct | M139: dec-nov
A140: change_10 | B140: =B98-M97 -> 0.09 | C140: =C98-B98 -> -0.09 | D140: 0.13 | E140: 0.08 | F140: -0.08 | G140: -0.07 | H140: 0.01 | I140: -0.02 | J140: 0.03 | K140: 0 | L140: 0.11 | M140: 0.07
A141: %change_10 | B141: =(B140/M97)*100 -> 4.663212435 | C141: =(C140/B98)*100 -> -4.455445545 | D141: 6.735751295 | E141: 3.883495146 | F141: -3.738317757 | G141: -3.398058252 | H141: 0.5025125628 | I141: -1 | J141: 1.515151515 | K141: 0 | L141: 5.472636816 | M141: 3.301886792
B142: jan | C142: feb | D142: mar | E142: apr | F142: may | G142: jun | H142: jul | I142: aug | J142: sep | K142: oct | L142: nov | M142: dec | N142: ytd_avg
A143: chg_prv_10-09 | B143: =B98-B97 -> 0.59 | C143: 0.45 | D143: 0.52 | E143: 0.56 | F143: 0.29 | G143: -0.06 | H143: 0.13 | I143: =I98-I97 -> 0.03 | J143: =J98-J97 -> 0.15 | K143: =K98-K97 -> 0.11 | L143: =L98-L97 -> 0.18 | M143: =M98-M97 -> 0.26 | N143: =O98-O97 -> 0.2675
A144: %chg_prv_10-09 | B144: =(B143/B97)*100 -> 41.25874126 | C144: 30.40540541 | D144: 33.76623377 | E144: 35.44303797 | F144: 16.38418079 | G144: -2.926829268 | H144: 6.951871658 | I144: =(I143/I97)*100 -> 1.538461538 | J144: =(J143/J97)*100 -> 8.064516129 | K144: =(K143/K97)*100 -> 5.789473684 | L144: =(L143/L97)*100 -> 9.278350515 | M144: =(M143/M97)*100 -> 13.47150259 | N144: =(N143/O97)*100 -> 15.07042254
B146: jan-dec | C146: feb-jan | D146: mar-feb | E146: apr-mar | F146: may-apr | G146: jun-may | H146: jul-jun | I146: aug-jul | J146: sep-aug | K146: oct-sep | L146: nov-oct | M146: dec-nov
A147: change_11 | B147: =B99-M98 -> 0.08 | C147: =C99-B99 -> 0.09 | D147: 0.2 | E147: 0.21 | F147: 0.07 | G147: -0.22 | H147: 0 | I147: =I99-H99 -> -0.02 | J147: =J99-I99 -> -0.07 | K147: =K99-J99 -> -0.13 | L147: =L99-K99 -> -0.05 | M147: =M99-L99 -> -0.05
A148: %change_11 | B148: =(B147/M98)*100 -> 3.652968037 | C148: =(C147/B99)*100 -> 3.964757709 | D148: 8.474576271 | E148: 8.203125 | F148: 2.527075812 | G148: -7.746478873 | H148: 0 | I148: -0.7633587786 | J148: -2.692307692 | K148: -5.138339921 | L148: -2.083333333 | M148: -2.127659574
B149: jan | C149: feb | D149: mar | E149: apr | F149: may | G149: jun | H149: jul | I149: aug | J149: sep | K149: oct | L149: nov | M149: dec | N149: ytd_avg
A150: chg_prv_11-10 | B150: =B99-B98 -> 0.25 | C150: 0.43 | D150: 0.5 | E150: 0.63 | F150: 0.78 | G150: 0.63 | H150: =H99-H98 -> 0.62 | I150: 0.62 | J150: 0.52 | K150: 0.39 | L150: 0.23 | M150: 0.11 | N150: 0.4758333333
A151: %chg_prv_11-10 | B151: =(B150/B98)*100 -> 12.37623762 | C151: 22.27979275 | D151: 24.27184466 | E151: 29.43925234 | F151: 37.86407767 | G151: 31.65829146 | H151: =(H150/H98)*100 -> 31 | I151: 31.31313131 | J151: 25.87064677 | K151: 19.40298507 | L151: 10.8490566 | M151: 5.02283105 | N151: 23.29661363
B153: jan-dec | C153: feb-jan | D153: mar-feb | E153: apr-mar | F153: may-apr | G153: jun-may | H153: jul-jun | I153: aug-jul | J153: sep-aug | K153: oct-sep | L153: nov-oct | M153: dec-nov
A154: change_12 | B154: =B100-M99 -> 0.07 | C154: =C100-B100 -> 0.09 | D154: 0.26 | E154: -0.02 | F154: -0.11 | G154: -0.1 | H154: -0.04 | I154: 0.26 | J154: -0.01 | K154: -0.2 | L154: -0.12 | M154: -0.11
A155: %change_12 | B155: =(B154/M99)*100 -> 3.043478261 | C155: =(C154/B100)*100 -> 3.797468354 | D155: 10.56910569 | E155: -0.7352941176 | F155: -4.074074074 | G155: -3.861003861 | H155: -1.606425703 | I155: 10.6122449 | J155: -0.36900369 | K155: -7.407407407 | L155: -4.8 | M155: -4.621848739
B156: jan | C156: feb | D156: mar | E156: apr | F156: may | G156: jun | H156: jul | I156: aug | J156: sep | K156: oct | L156: nov | M156: dec | N156: ytd_avg
A157: chg_prv_12-11 | B157: =B100-B99 -> 0.1 | C157: 0.1 | D157: 0.16 | E157: -0.07 | F157: -0.25 | G157: -0.13 | H157: =H100-H99 -> -0.17 | I157: 0.11 | J157: =J100-J99 -> 0.17 | K157: 0.1 | L157: =L100-L99 -> 0.03 | M157: -0.03 | N157: =O100-O99 -> 0.01
A158: %chg_prv_12-11 | B158: =(B157/B99)*100 -> 4.405286344 | C158: 4.237288136 | D158: 6.25 | E158: -2.527075812 | F158: -8.802816901 | G158: -4.961832061 | H158: -6.488549618 | I158: =(I157/I99)*100 -> 4.230769231 | J158: 6.719367589 | K158: =(K157/K99)*100 -> 4.166666667 | L158: 1.276595745 | M158: =(M157/M99)*100 -> -1.304347826 | N158: =(N157/O99)*100 -> 0.3970880212
B160: jan-dec | C160: feb-jan | D160: mar-feb | E160: apr-mar | F160: may-apr | G160: jun-may | H160: jul-jun | I160: aug-jul | J160: sep-aug | K160: oct-sep | L160: nov-oct | M160: dec-nov
A161: change_13 | B161: =B101-M100 -> 0 | C161: =C101-B101 -> 0.27 | D161: 0 | E161: -0.04 | F161: 0.16 | G161: -0.18 | H161: -0.02 | I161: =I101-H101 -> 0 | J161: -0.04 | K161: -0.13 | L161: -0.11 | M161: -0.02
A162: %change_13 | B162: =(B161/M100)*100 -> 0 | C162: =(C161/B101)*100 -> 11.89427313 | D162: 0 | E162: -1.57480315 | F162: 6.4 | G162: -6.766917293 | H162: -0.8064516129 | I162: 0 | J162: -1.62601626 | K162: -5.371900826 | L162: -4.80349345 | M162: -0.9174311927
B163: jan | C163: feb | D163: mar | E163: apr | F163: may | G163: jun | H163: jul | I163: aug | J163: sep | K163: oct | L163: nov | M163: dec | N163: ytd_avg
A164: chg_prv_13-12 | B164: =B101-B100 -> -0.1 | C164: 0.08 | D164: -0.18 | E164: -0.2 | F164: 0.07 | G164: -0.01 | H164: =H101-H100 -> 0.01 | I164: -0.25 | J164: =J101-J100 -> -0.28 | K164: -0.21 | L164: =L101-L100 -> -0.2 | M164: -0.11 | N164: =N101-N100 -> -0.115
A165: %chg_prv_13-12 | B165: =(B164/B100)*100 -> -4.219409283 | C165: 3.25203252 | D165: -6.617647059 | E165: -7.407407407 | F165: 2.702702703 | G165: -0.4016064257 | H165: 0.4081632653 | I165: =(I164/I100)*100 -> -9.225092251 | J165: -10.37037037 | K165: =(K164/K100)*100 -> -8.4 | L165: -8.403361345 | M165: =(M164/M100)*100 -> -4.845814978 | N165: =(N164/N100)*100 -> -4.54845089
B167: jan-dec | C167: feb-jan | D167: mar-feb | E167: apr-mar | F167: may-apr | G167: jun-may | H167: jul-jun | I167: aug-jul | J167: sep-aug | K167: oct-sep | L167: nov-oct | M167: dec-nov
A168: change_14 | B168: =B102-M101 -> 0.08 | C168: =C102-B102 -> 0.05 | D168: 0.16 | E168: 0.03 | F168: -0.04 | G168: 0.06 | H168: -0.07 | I168: =I102-H102 -> -0.09 | J168: -0.04 | K168: -0.16 | L168: -0.16 | M168: -0.29
A169: %change_14 | B169: =(B168/M101)*100 -> 3.703703704 | C169: =(C168/B102)*100 -> 2.232142857 | D169: 6.986899563 | E169: 1.224489796 | F169: -1.612903226 | G169: 2.459016393 | H169: -2.8 | I169: -3.703703704 | J169: -1.709401709 | K169: -6.956521739 | L169: -7.476635514 | M169: -14.64646465
B170: jan | C170: feb | D170: mar | E170: apr | F170: may | G170: jun | H170: jul | I170: aug | J170: sep | K170: oct | L170: nov | M170: dec | N170: ytd_avg
A171: chg_prv_14-13 | B171: =B102-B101 -> -0.03 | C171: -0.25 | D171: -0.09 | E171: -0.02 | F171: -0.22 | G171: 0.02 | H171: =H102-H101 -> -0.03 | I171: -0.12 | J171: =J102-J101 -> -0.12 | K171: -0.15 | L171: =L102-L101 -> -0.2 | M171: -0.47 | N171: =O102-O101 -> -0.14
A172: %chg_prv_14-13 | B172: =(B171/B101)*100 -> -1.321585903 | C172: -9.842519685 | D172: -3.543307087 | E172: -0.8 | F172: -8.270676692 | G172: 0.8064516129 | H172: =(H171/H101)*100 -> -1.219512195 | I172: -4.87804878 | J172: =(J171/J101)*100 -> -4.958677686 | K172: -6.550218341 | L172: =(L171/L101)*100 -> -9.174311927 | M172: -21.75925926 | N172: =(N171/O101)*100 -> -5.801104972
B174: jan-dec | C174: feb-jan | D174: mar-feb | E174: apr-mar | F174: may-apr | G174: jun-may | H174: jul-jun | I174: aug-jul | J174: sep-aug | K174: oct-sep | L174: nov-oct | M174: dec-nov
A175: change_15 | B175: =B103-M102 -> -0.32
A176: %change_15 | B176: =(B175/M102)*100 -> -18.93491124
B177: jan | C177: feb | D177: mar | E177: apr | F177: may | G177: jun | H177: jul | I177: aug | J177: sep | K177: oct | L177: nov | M177: dec | N177: ytd_avg
A178: chg_prv_15-14 | B178: =B103-B102 -> -0.87 | N178: =N103-N102 -> -0.9033333333
A179: %chg_prv_15-14 | B179: =(B178/B102)*100 -> -38.83928571 | N179: =(N178/N102)*100 -> -39.73607038
A181: Month EC | B181: jan | C181: feb | D181: mar | E181: apr | F181: may | G181: jun | H181: jul | I181: aug | J181: sep | K181: oct | L181: nov | M181: dec | N181: ytd_avg | O181: Column1
A182: 2004 | B182: 1.62 | C182: 1.7 | D182: 1.79 | E182: 1.87 | F182: 2.06 | G182: 2.05 | H182: 1.98 | I182: 2 | J182: 1.95 | K182: 2.09 | L182: 2.08 | M182: 1.9 | N182: =AVERAGE(B182:M182) -> 1.924166667 | O182: =AVERAGE(B182:M182) -> 1.924166667
A183: 2005 | B183: 1.92 | C183: 2 | D183: 2.18 | E183: 2.3 | F183: 2.24 | G183: 2.25 | H183: 2.37 | I183: 2.55 | J183: 2.86 | K183: 2.72 | L183: 2.35 | M183: 2.26 | N183: =AVERAGE(B183:L183) -> 2.34 | O183: 2.333333333
A184: 2006 | B184: 2.36 | C184: 2.37 | D184: 2.48 | E184: 2.79 | F184: 2.95 | G184: 2.95 | H184: 3.06 | I184: 3.09 | J184: 2.63 | K184: 2.34 | L184: 2.36 | M184: 2.41 | N184: =AVERAGE(B184:M184) -> 2.649166667 | O184: 2.649166667
A185: 2007 | B185: 2.26 | C185: 2.29 | D185: 2.61 | E185: 2.83 | F185: 3.26 | G185: 3.17 | H185: 3.18 | I185: 3.04 | J185: 3.12 | K185: 2.95 | L185: 3.17 | M185: 3.08 | N185: 2.913333333 | O185: 2.913333333
A186: 2008 | B186: 3.14 | C186: 3.13 | D186: 3.25 | E186: 3.48 | F186: 3.8 | G186: 3.99 | H186: 4.01 | I186: 3.81 | J186: 3.77 | K186: 2.9375 | L186: 2.08 | M186: 1.83 | N186: 3.268958333 | O186: 3.268958333
A187: 2009 | B187: 1.92 | C187: 1.99 | D187: 2.06 | E187: 2.12 | F187: 2.34 | G187: 2.74 | H187: 2.56 | I187: 2.64 | J187: 2.58 | K187: 2.6 | L187: 2.76 | M187: 2.67 | N187: 2.415 | O187: 2.415
A188: 2010 | B188: 2.78 | C188: 2.69 | D188: 2.86 | E188: 2.93 | F188: 2.95 | G188: 2.79 | H188: 2.8 | I188: 2.77 | J188: 2.84 | K188: 2.84 | L188: 2.97 | M188: 3.04 | N188: 2.855 | O188: 2.855
A189: 2011 | B189: 3.21 | C189: 3.32 | D189: 3.63 | E189: 3.91 | F189: 3.97 | G189: 3.75 | H189: 3.78 | I189: 3.78 | J189: 3.7 | K189: 3.55 | L189: 3.43 | M189: 3.34 | N189: 3.614166667 | O189: 3.614166667
A190: 2012 | B190: 3.41 | C190: 3.56 | D190: 3.84 | E190: 3.86 | F190: 3.73 | G190: 3.64 | H190: 3.71 | I190: 3.89 | J190: 3.95 | K190: 3.67 | L190: 3.43 | M190: 3.28 | N190: =AVERAGE(B190:M190) -> 3.664166667 | O190: =AVERAGE(B190:M190) -> 3.664166667
A191: 2013 | B191: 3.27 | C191: 3.73 | D191: 3.74 | E191: 3.6 | F191: 3.99 | G191: 3.66 | H191: 3.67 | I191: 3.62 | J191: 3.61 | K191: 3.4 | L191: 3.19 | M191: 3.15 | N191: =AVERAGE(B191:M191) -> 3.5525 | O191: =AVERAGE(B191:M191) -> 3.5525
A192: 2014 | B192: 3.29 | C192: 3.39 | D192: 3.62 | E192: 3.65 | F192: 3.62 | G192: 3.7 | H192: 3.67 | I192: 3.52 | J192: 3.45 | K192: 3.2 | L192: 2.98 | M192: 2.56 | N192: =AVERAGE(B192:M192) -> 3.3875 | O192: =AVERAGE(B192:M192) -> 3.3875
A193: 2015 | B193: 2.07 | N193: =AVERAGE(B193:B193) -> 2.07 | O193: =AVERAGE(B193:M193) -> 2.07
B194: jan-dec | C194: feb-jan | D194: mar-feb | E194: apr-mar | F194: may-apr | G194: jun-may | H194: jul-jun | I194: aug-jul | J194: sep-aug | K194: oct-sep | L194: nov-oct | M194: dec-nov
A195: change_05 | B195: =B183-M182 -> 0.02 | C195: =C183-B183 -> 0.08 | D195: 0.18 | E195: 0.12 | F195: -0.06 | G195: 0.01 | H195: 0.12 | I195: 0.18 | J195: 0.31 | K195: -0.14 | L195: -0.37 | M195: -0.09
A196: %change_05 | B196: =(B195/M182)*100 -> 1.052631579 | C196: =(C195/B183)*100 -> 4.166666667 | D196: 9 | E196: 5.504587156 | F196: -2.608695652 | G196: 0.4464285714 | H196: 5.333333333 | I196: 7.594936709 | J196: 12.15686275 | K196: -4.895104895 | L196: -13.60294118 | M196: -3.829787234
B197: jan | C197: feb | D197: mar | E197: apr | F197: may | G197: jun | H197: jul | I197: aug | J197: sep | K197: oct | L197: nov | M197: dec | N197: ytd_avg
A198: chg_prv_05-04 | B198: =B183-B182 -> 0.3 | C198: 0.3 | D198: 0.39 | E198: 0.43 | F198: 0.18 | G198: 0.2 | H198: =H183-H182 -> 0.39 | I198: 0.55 | J198: 0.91 | K198: 0.63 | L198: 0.27 | M198: 0.36 | N198: =O183-O182 -> 0.4091666667
A199: %chg_prv_05-04 | B199: =(B198/B182)*100 -> 18.51851852 | C199: 17.64705882 | D199: 21.7877095 | E199: 22.99465241 | F199: 8.737864078 | G199: 9.756097561 | H199: =(H198/H182)*100 -> 19.6969697 | I199: 27.5 | J199: 46.66666667 | K199: 30.14354067 | L199: 12.98076923 | M199: 18.94736842 | N199: =(N198/O182)*100 -> 21.26461672
B201: jan-dec | C201: feb-jan | D201: mar-feb | E201: apr-mar | F201: may-apr | G201: jun-may | H201: jul-jun | I201: aug-jul | J201: sep-aug | K201: oct-sep | L201: nov-oct | M201: dec-nov
A202: change_06 | B202: =B184-M183 -> 0.1 | C202: =C184-B184 -> 0.01 | D202: 0.11 | E202: 0.31 | F202: 0.16 | G202: 0 | H202: 0.11 | I202: 0.03 | J202: -0.46 | K202: =K184-J184 -> -0.29 | L202: =L184-K184 -> 0.02 | M202: =M184-L184 -> 0.05
A203: %change_06 | B203: =(B202/M183)*100 -> 4.424778761 | C203: =(C202/B184)*100 -> 0.4237288136 | D203: 4.641350211 | E203: 12.5 | F203: 5.734767025 | G203: 0 | H203: 3.728813559 | I203: 0.9803921569 | J203: -14.88673139 | K203: =(K202/J184)*100 -> -11.02661597 | L203: =(L202/K184)*100 -> 0.8547008547 | M203: =(M202/L184)*100 -> 2.118644068
B204: jan | C204: feb | D204: mar | E204: apr | F204: may | G204: jun | H204: jul | I204: aug | J204: sep | K204: oct | L204: nov | M204: dec | N204: ytd_avg
A205: chg_prv_06-05 | B205: =B184-B183 -> 0.44 | C205: 0.37 | D205: 0.3 | E205: 0.49 | F205: 0.71 | G205: 0.7 | H205: =H184-H183 -> 0.69 | I205: 0.54 | J205: -0.23 | K205: -0.38 | L205: 0.01 | M205: 0.15 | N205: =O184-O183 -> 0.3158333333
A206: %chg_prv_06-05 | B206: =(B205/B183)*100 -> 22.91666667 | C206: 18.5 | D206: 13.76146789 | E206: 21.30434783 | F206: 31.69642857 | G206: 31.11111111 | H206: 29.11392405 | I206: 21.17647059 | J206: -8.041958042 | K206: =(K205/K183)*100 -> -13.97058824 | L206: =(L205/L183)*100 -> 0.4255319149 | M206: =(M205/M183)*100 -> 6.637168142 | N206: =(N205/O183)*100 -> 13.53571429
B208: jan-dec | C208: feb-jan | D208: mar-feb | E208: apr-mar | F208: may-apr | G208: jun-may | H208: jul-jun | I208: aug-jul | J208: sep-aug | K208: oct-sep | L208: nov-oct | M208: dec-nov
A209: change_07 | B209: =B185-M184 -> -0.15 | C209: =C185-B185 -> 0.03 | D209: 0.32 | E209: 0.22 | F209: 0.43 | G209: -0.09 | H209: 0.01 | I209: -0.14 | J209: 0.08 | K209: -0.17 | L209: =L185-K185 -> 0.22 | M209: =M185-L185 -> -0.09
A210: %change_07 | B210: =(B209/M184)*100 -> -6.22406639 | C210: =(C209/B185)*100 -> 1.327433628 | D210: 13.97379913 | E210: 8.429118774 | F210: 15.19434629 | G210: -2.760736196 | H210: 0.3154574132 | I210: -4.402515723 | J210: 2.631578947 | K210: -5.448717949 | L210: =(L209/K185)*100 -> 7.457627119 | M210: =(M209/L185)*100 -> -2.839116719
B211: jan | C211: feb | D211: mar | E211: apr | F211: may | G211: jun | H211: jul | I211: aug | J211: sep | K211: oct | L211: nov | M211: dec | N211: ytd_avg
A212: chg_prv_07-06 | B212: =B185-B184 -> -0.1 | C212: -0.08 | D212: 0.13 | E212: 0.04 | F212: 0.31 | G212: 0.22 | H212: 0.12 | I212: -0.05 | J212: =J185-J184 -> 0.49 | K212: =K185-K184 -> 0.61 | L212: =L185-L184 -> 0.81 | M212: =M185-M184 -> 0.67 | N212: =O185-O184 -> 0.2641666667
A213: %chg_prv_07-06 | B213: =(B212/B184)*100 -> -4.237288136 | C213: -3.375527426 | D213: 5.241935484 | E213: 1.433691756 | F213: 10.50847458 | G213: 7.457627119 | H213: 3.921568627 | I213: -1.618122977 | J213: 18.63117871 | K213: =(K212/K184)*100 -> 26.06837607 | L213: =(L212/L184)*100 -> 34.3220339 | M213: =(M212/M184)*100 -> 27.80082988 | N213: =(N212/O184)*100 -> 9.97168921
B215: jan-dec | C215: feb-jan | D215: mar-feb | E215: apr-mar | F215: may-apr | G215: jun-may | H215: jul-jun | I215: aug-jul | J215: sep-aug | K215: oct-sep | L215: nov-oct | M215: dec-nov
A216: change_08 | B216: =B186-M185 -> 0.06 | C216: =C186-B186 -> -0.01 | D216: 0.12 | E216: 0.23 | F216: 0.32 | G216: 0.19 | H216: 0.02 | I216: -0.2 | J216: -0.04 | K216: -0.8325 | L216: -0.8575 | M216: -0.25
A217: %change_08 | B217: =(B216/M185)*100 -> 1.948051948 | C217: =(C216/B186)*100 -> -0.3184713376 | D217: 3.833865815 | E217: 7.076923077 | F217: 9.195402299 | G217: 5 | H217: 0.5012531328 | I217: -4.987531172 | J217: -1.049868766 | K217: -22.08222812 | L217: -29.19148936 | M217: -12.01923077
B218: jan | C218: feb | D218: mar | E218: apr | F218: may | G218: jun | H218: jul | I218: aug | J218: sep | K218: oct | L218: nov | M218: dec | N218: ytd_avg
A219: chg_prv_08-07 | B219: =B186-B185 -> 0.88 | C219: 0.84 | D219: 0.64 | E219: 0.65 | F219: 0.54 | G219: 0.82 | H219: =H186-H185 -> 0.83 | I219: 0.77 | J219: 0.65 | K219: -0.0125 | L219: -1.09 | M219: -1.25 | N219: =O186-O185 -> 0.355625
A220: %chg_prv_08-07 | B220: =(B219/B185)*100 -> 38.9380531 | C220: 36.68122271 | D220: 24.5210728 | E220: 22.96819788 | F220: 16.56441718 | G220: 25.86750789 | H220: =(H219/H185)*100 -> 26.10062893 | I220: 25.32894737 | J220: 20.83333333 | K220: -0.4237288136 | L220: -34.38485804 | M220: -40.58441558 | N220: =(N219/O185)*100 -> 12.20680778
B222: jan-dec | C222: feb-jan | D222: mar-feb | E222: apr-mar | F222: may-apr | G222: jun-may | H222: jul-jun | I222: aug-jul | J222: sep-aug | K222: oct-sep | L222: nov-oct | M222: dec-nov
A223: change_09 | B223: =B187-M186 -> 0.09 | C223: =C187-B187 -> 0.07 | D223: 0.07 | E223: 0.06 | F223: 0.22 | G223: 0.4 | H223: -0.18 | I223: 0.08 | J223: -0.06 | K223: 0.02 | L223: 0.16 | M223: -0.09
A224: %change_09 | B224: =(B223/M186)*100 -> 4.918032787 | C224: =(C223/B187)*100 -> 3.645833333 | D224: 3.51758794 | E224: 2.912621359 | F224: 10.37735849 | G224: 17.09401709 | H224: -6.569343066 | I224: 3.125 | J224: -2.272727273 | K224: 0.7751937984 | L224: 6.153846154 | M224: -3.260869565
B225: jan | C225: feb | D225: mar | E225: apr | F225: may | G225: jun | H225: jul | I225: aug | J225: sep | K225: oct | L225: nov | M225: dec | N225: ytd_avg
A226: chg_prv_09-08 | B226: =B187-B186 -> -1.22 | C226: -1.14 | D226: -1.19 | E226: -1.36 | F226: -1.46 | G226: -1.25 | H226: -1.45 | I226: -1.17 | J226: -1.19 | K226: -0.3375 | L226: 0.68 | M226: 0.84 | N226: =O187-O186 -> -0.8539583333
... 116 more rows

Sheet graphs
